Workbook

Sheet Resumen
B1: CORTE SUPREMA DE JUSTICIA - PROGRAMA DE LAS NACIONES UNIDAS PARA EL DESARROLLO
B2: "PROGRAMA DE INFRAESTRUCTURA EDILICIA CSJ - PNUD"
B3: SDP/14311/642/2021 - CONSTRUCCION DE LAS OBRAS CIVILES, INSTALACIONES Y MANTENIMIENTO POSTERIOR - AMPLIACION DEL PALACIO DE JUSTICIA DE SAN LORENZO
B5: RESUMEN DEL PRESUPUESTO
B6: Item | C6: Descripción | E6: Precio Total
B7: Nº | E7: Gs. Iva Incluido
B9: A | C9: OBRAS CIVILES E INSTALACIONES
B10: A.1 | C10: Obras Civiles
B11: A.2 | C11: Sistema de Climatizacion
B12: A.3 | C12: Sistema de Integracion Electronica
B13: A.4 | C13: Sistema de Seguridad Electronica
B14: A.5 | C14: Sistema de Comunicación Oral y Musica Funcional
B15: A.6 | C15: Sistema de Telefonia
B16: A.7 | C16: Red de Datos
B17: A.8 | C17: Ascensores
B18: A.9 | C18: Generador de Emergencia
C19: Total de Obras e Instalaciones
B21: B | C21: MANTENIMIENTO DE LAS OBRAS E INSTALACIONES
B22: B.1 | C22: Obras Civiles
B23: B.2 | C23: Sistema de Climatizacion
B24: B.3 | C24: Sistema de Integracion Electronica
B25: B.4 | C25: Sistema de Seguridad Electronica
B26: B.5 | C26: Sistema de Comunicación Oral y Musica Funcional
B27: B.6 | C27: Sistema de Telefonia
B28: B.7 | C28: Red de Datos
B29: B.8 | C29: Ascensores
B30: B.9 | C30: Generador de Emergencia
C31: Total Mantenimiento de las Obras e Instalaciones
C33: Total General
C34: Son Guaranies . . . . . . .

Sheet A.1 Obras Civiles
B1: =+Resumen!B1 -> CORTE SUPREMA DE JUSTICIA - PROGRAMA DE LAS NACIONES UNIDAS PARA EL DESARROLLO
B2: =+Resumen!B2 -> "PROGRAMA DE INFRAESTRUCTURA EDILICIA CSJ - PNUD"
B3: =+Resumen!B3 -> SDP/14311/642/2021 - CONSTRUCCION DE LAS OBRAS CIVILES, INSTALACIONES Y MANTENIMIENTO POSTERIOR - AMPLIACION DEL PALACIO DE JUSTICIA DE SAN LORENZO
B5: A.1 PLANILLA DE CÓMPUTO MÉTRICO Y PRESUPUESTO - OBRAS CIVILES
B6: Ítem | C6: Cód. | D6: Descripción de Rubros | E6: OG | F6: Un | G6: Cantidad | H6: Precio Unit. | I6: Precio Total
C7: E.T. | H7: Gs. Iva Incluido | I7: Gs. Iva Incluido
B8: 1 | D8: TRABAJOS PRELIMINARES
B9: 1.1 | C9: A.1 | D9: Limpieza de terreno | E9: 522 | F9: m2 | G9: 2500
B10: 1.2 | C10: A.2 | D10: Vallado de obra | E10: 522 | F10: ml | G10: 410
B11: 1.3 | C11: A.3 | D11: Obrador | E11: 522 | F11: gl | G11: 1
B12: 1.4 | C12: A.4 | D12: Instalación eléctrica e hidrosanitaria de la obra | E12: 522 | F12: gl | G12: 1
B13: 1.5 | C13: A.5 | D13: Letrero de obra | E13: 522 | F13: m2 | G13: 18
B14: 1.6 | C14: A.6 | D14: Replanteo y marcación de obra | E14: 522 | F14: m2 | G14: 18270
B15: 1.7 | C15: A.7 | D15: DEMOLICIONES, REMOCIONES Y DEPÓSITO DE BIENES | E15: 522
B16: 1.7.1 | D16: ALQUILER DE DEPÓSITO: Alquiler por dos años de depósito y patio en condiciones de seguridad, para resguardo de los bienes de la CSJ retirados del edificio. | E16: 522 | F16: gl | G16: 1
B17: 1.7.2 | D17: ESPACIOS ESPACIOS EXTERIORES.
B18: 1.7.2.1 | D18: CAFETERÍA EXISTENTE (78 m2): Desmontaje y Traslado a Depósito componentes de; Climatización: Ductos, Cañerías y equipos; Inst. Eléctrica: Remoción de ductos, cables Tableros y artefactos; Instalación Sanitaria: Remoción de cañerías y griferías y artefactos; Carpintería de Aluminio y Vidrios: Remoción de perfilerías y vidrios en general; Carpintería de Madera: Remosión de Marcos y puertas; Estructura de H°A°: Demolición y remoción de losas, vigas, pilares y zapatas de fundación; Mampostería: Demolición y remoción de mamposterías y revoques; Pisos: Demolición y remoción de contrapisos y pisos. | E18: 522 | F18: gl. | G18: 1
B19: 1.7.2.2 | D19: BLOQUE DE SERVICIOS (140 m2): Desmontaje y Traslado a Depósito componentes de; Climatización: Ductos, Cañerías y equipos; Inst. Eléctrica: Remoción de ductos, cables Tableros y artefactos; Instalación Sanitaria: Remoción de cañerías y griferías y artefactos; Carpintería de Aluminio y Vidrios: Remoción de perfilerías y vidrios en general; Carpintería de Madera: Remosión de Marcos y puertas; Estructura de H°A°: Demolición y remoción de losas, vigas, pilares y zapatas de fundación; Mampostería: Demolición y remoción de mamposterías y revoques; Pisos: Demolición y remoción de contrapisos y pisos. | E19: 522 | F19: gl. | G19: 1
B20: 1.7.2.3 | D20: TECHOS DE ESTACIONAMIENTO: Remoción y traslado a depósito de estructura metálica y chapas; Demolición y remoción de estructura de H°A°( pilares y fundación). | E20: 522 | F20: gl. | G20: 1
B21: 1.7.2.4 | D21: MURO PERIMETRAL EN ESTACIONAMIENTO JUECES: Demolición de Estructura de H°A°(Vigas, Pilares y fundación), mamposterías y revestimiento de piedra. | E21: 522 | F21: gl. | G21: 1
B22: 1.7.2.5 | D22: PORTONES DE ACCESO: Remoción y traslado de un porton de acceso vehicular en Estacionamiento de Jueces y dos en Retén de Procesados. | E22: 522 | F22: gl. | G22: 1
B23: 1.7.2.6 | D23: PERGOLADOS, 3 UNIIDADES: Remoción y traslado a depósito de estructura metálica; Demolición y remoción de estructura de H°A°( pilares y fundación) y revestimiento de piedra. | E23: 522 | F23: gl. | G23: 1
B24: 1.7.2.7 | D24: Demoliciión y remoción de Muros y Canteros. | E24: 522 | F24: gl. | G24: 1
B25: 1.7.2.8 | D25: MONUMENTO A LA DIOSA ASTREA: Remoción y traslado a Depósito de la Escultura con sus accesorios y elementos constitutivos(artefactos eléctricos, mástiles, revestimientos, etc.), en condiciones para ser reutilizados. | E25: 522 | F25: gl. | G25: 1
B26: 1.7.2.9 | D26: CARTELES DE SEÑALIZACIÓN: Remoción y traslado a Depósito de la Cartelería existente. Se retiran en su totalidad. | E26: 522 | F26: gl. | G26: 1
B27: 1.7.2.10 | D27: TANQUE DE H°A°: Demolición de Tanque de H°A° existente en Subsuelo en área de Estacionamiento Magistrado. | E27: 522 | F27: gl. | G27: 1
B28: 1.7.2.11 | D28: Demolición de pisos, escalinatas y rampas. | E28: 522
B29: 1.7.2.11.1 | D29: De Canto Rodado | E29: 522 | F29: m2 | G29: 1340
B30: 1.7.2.11.2 | D30: De Hormigón Allanado | E30: 522 | F30: m2 | G30: 1650
B31: 1.7.2.11.3 | D31: Demolición y remosión de Cordones de H°A° | E31: 522 | F31: gl. | G31: 1
B32: 1.7.2.12 | D32: Remoción y traslado a Depósito de juegos infantiles | E32: 522 | F32: gl. | G32: 1
B33: 1.7.2.13 | D33: Remoción y traslado a Depósito de Basureros existentes | E33: 522 | F33: gl | G33: 1
B34: 1.7.2.14 | D34: Remoción de bancos de madera | E34: 522 | F34: gl. | G34: 1
B35: 1.7.2.15 | D35: Remoción y traslado a depósito de Basureros existentes | E35: 522 | F35: gl | G35: 1
B36: 1.7.2.16 | D36: Demolición de canteros | E36: 522 | F36: gl | G36: 1
B37: 1.7.2.17 | D37: Demolición de muros revestidos de piedra. | E37: 522 | F37: gl. | G37: 1
B38: 1.7.2.18 | D38: Remoción de pergolas: fundaciones, pilares y estructura Metálica. | E38: 522 | F38: gl | G38: 1
B39: 1.7.2.19 | D39: Remoción de juegos infantiles | E39: 522 | F39: gl | G39: 1
B40: 1.7.2.20 | D40: Instalación eléctrica
B41: 1.7.2.20.1 | D41: Transformador de 500 KVA: Desmontaje y traslado del Equipo hasta depósito. Desmontaje y entrega de Seccionadores y conductores. | E41: 522 | F41: un | G41: 1
B42: 1.7.2.20.2 | D42: Banco de Capacitores: Desmontaje y traslado del equipo hasta Depósito. | E42: 522 | F42: un | G42: 1
B43: 1.7.2.20.3 | D43: Tablero General: Desmontaje y traslado hasta Depósito. | E43: 522 | F43: un | G43: 1
B44: 1.7.2.20.4 | D44: Tablero Principal: Desmontaje y traslado hasta Depósito. | E44: 522 | F44: un | G44: 1
B45: 1.7.2.20.5 | D45: Grupo Generador de Emergencia: Desmontaje del Grupo incluyendo el Tablero de Transferencia Automática y traslado del conjunto a Depósito. | E45: 522 | F45: un | G45: 1
B46: 1.7.2.20.6 | D46: Estracción, remoción y entrega a depósito de Medidor y Cables de linea de media tensión, desde Columna de entrega, hasta Transformador. | E46: 522 | F46: gl | G46: 1
B47: 1.7.2.20.7 | D47: Columnas y Artefactos de Alumbrado Público: Desmontaje y entrega en depósito en condiciones de, mantenimiento previo, ser reutilizados. | E47: 522 | F47: gl | G47: 1
B48: 1.7.2.20.8 | D48: Artefactos de Iluminación de Fachada: Desmontaje y entrega en depósito. | E48: 522 | F48: gl | G48: 1
B49: 1.7.2.20.9 | D49: Cables de AP , De Ilumibación de Fachada y otros: Remoción y entrega en Depósito. Demolición de Registros y Ductos exteriores. | E49: 522 | F49: gl | G49: 1
B50: 1.7.2.20.10 | D50: Remoción y traslado a Depósito de Artefactos tipo Tortuguitas | E50: 522 | F50: gl | G50: 1
B51: 1.7.2.20.11 | D51: Remoción de Artefactos de iluminaciónde pergolas | E51: 522 | F51: gl | G51: 1
B52: 1.7.2.20.12 | D52: Remoción de Tableros y Conductores de las Instalaciones exteriores | E52: 522 | F52: gl | G52: 1
B53: 1.7.2.21 | D53: MOBILIARIO EXTERIOR: Juegos Infantiles, bancos y basureros. Remoción y traslado a depósito. | E53: 522 | F53: gl | G53: 1
B54: 1.7.3 | D54: DEMOLICIONES Y REMOCIONES EN EL EDIFICIO - BLOQUE A
B55: 1.7.3.1 | D55: Mamposterias
B56: 1.7.3.1.1 | D56: Exterior de Fachada de 0,15 a la Vista | E56: 522 | F56: gl | G56: 1
B57: 1.7.3.1.2 | D57: Exterior de Fachada de 0,15 revocada, donde se indique en los planos de demolición. | E57: 522 | F57: gl | G57: 1
B58: 1.7.3.1.3 | D58: Interior común de 0,15, donde se indique en los planos . | E58: 522 | F58: gl | G58: 1
B59: 1.7.3.1.4 | D59: Interior común de 0,20, donde se indique en los planos. | E59: 522 | F59: gl | G59: 1
B60: 1.7.3.1.5 | D60: Interior común de 0,30, donde se indique en los planos. | E60: 522 | F60: gl | G60: 1
B61: 1.7.3.1.6 | D61: Revoques, interior y exterior completo. | E61: 522 | F61: gl | G61: 1
B62: 1.7.3.2 | D62: Pisos | E62: 522
B63: 1.7.3.2.1 | D63: Piso de H°A° en Retén. | E63: 522 | F63: gl | G63: 1
B64: 1.7.3.2.2 | D64: Piso de Granito Reconstituido, completo. | E64: 522 | F64: gl | G64: 1
B65: 1.7.3.2.3 | D65: Piso Cerámico, completo | E65: 522 | F65: gl | G65: 1
B66: 1.7.3.2.4 | D66: Zócalo de Granito Reconstituído, completo | E66: 522 | F66: gl | G66: 1
B67: 1.7.3.2.5 | D67: Contrapisos en áreas de Sanitarios para remover cañerías y accesorios | E67: 522 | F67: gl | G67: 1
B68: 1.7.3.3 | D68: Revestimientos | E68: 522
B69: 1.7.3.3.1 | D69: De Piedra exterior en Fachadas | E69: 522 | F69: gl | G69: 1
B70: 1.7.3.3.2 | D70: De cerámica Interior en baños y kitchenette, completo | E70: 522 | F70: gl | G70: 1
B71: 1.7.3.3.3 | D71: Granito Natural: Remosión de Mesadas y bachas, separadores en Mingitorio y otros elementos de Granito en Sanitarios y Kitchenet. Deberán ser removidos con precaución y trasladados a Depósito. | E71: 522 | F71: gl | G71: 1
B72: 1.7.3.4 | D72: Mamparas: Remoción y traslado a depósito. | E72: 522 | F72: gl | G72: 1
B73: 1.7.3.5 | D73: Cielorrasos: Demolición de junta tomada y remoción de los removibles, completo | E73: 522 | F73: gl | G73: 1
B74: 1.7.3.6 | D74: Aberturas
B75: 1.7.3.6.1 | D75: Aberturas de Madera: Demolición en anclaje de marcos y Retiro del conjunto, marcos y puertas. Completo. | E75: 522 | F75: gl | G75: 1
B76: 1.7.3.6.2 | D76: Aberturas de Aluminio Vidriadas, completo. | E76: 522 | F76: gl | G76: 1
B77: 1.7.3.6.3 | D77: Aberturas de Metálicas. Marcos y Puertas, completo | E77: 522 | F77: gl | G77: 1
B78: 1.7.3.7 | D78: Remoción del Techo Metálico y traslado a Depósito de sus componentes. | E78: 522 | F78: gl | G78: 1
B79: 1.7.3.8 | D79: Demolición de Estructura de H° de soporte del Techo Metálico ( Canalones, vigas y pilares). Los Pilares se recortan a la altura necesaria para, posteriormente, complementar hasta la nueva losa. | E79: 522 | F79: gl | G79: 1
B80: 1.7.3.9 | D80: AZOTEA RETÉN: Demolición de pisos de tejuelita, coniza perimetral, remosión de contrapisos, aislación, H°A° y otras demoliciones necesarias para ampliar la estructura de H°A° en el área considerada. | E80: 522 | F80: gl | G80: 1
B81: 1.7.3.10 | D81: Remoción de Artefactos de iluminación, todo el bloque. | E81: 522 | F81: gl | G81: 1
B82: 1.7.3.11 | D82: Remomoción de Equipos de Climatización, todo el bloque | E82: 522 | F82: gl | G82: 1
B83: 1.7.3.12 | D83: Remoción de Ductos Eléctricos y de Climatización, cajas, bandejas, Cables y otros elementos existentes sobre el Cielorraso y Gabinetes Técnicos en cada piso del bloque. | E83: 522 | F83: gl | G83: 1
B84: 1.7.3.13 | D84: Remoción y traslado de los Muebles existentes en el bloque, a Depósito a cargo del Contratista. En caso de que la Circuscripción le asigne otro destino, deberá estar suficientemente documentado. | E84: 522 | F84: gl | G84: 1
B85: 1.7.3.14 | D85: Remoción y traslado Carteles de Señalización a Depósito en custodia de la Contratista. | E85: 522 | F85: gl | G85: 1
B86: 1.7.3.15 | D86: Remoción y traslado a Depósito de artefactos y equipos y dispositivos de Instalaciones Especiales( CCTV, Detección de Incendios e Intrusos, Sistemas de Sonorización, Controles de acceso y otros sistemas instalados) | E86: 522 | F86: gl | G86: 1
B87: 1.7.3.16 | D87: Remoción y traslado de artefactos sanitarios y griferías, en todo el Bloque. | E87: 522 | F87: gl | G87: 1
B88: 1.7.3.18 | D88: Remoción de cañería de agua y desagues | E88: 522 | F88: gl | G88: 1
B89: 1.7.3.19 | D89: Remoción y traslado de equipos, muebles e instalaciones existentes en la Sala de Control. | E89: 522 | F89: gl | G89: 1
B90: 1.7.4 | D90: DEMOLICIONES Y REMOCIONES EN EL EDIFICIO - BLOQUE B
B91: 1.7.4.1 | D91: Mamposterias
B92: 1.7.4.1.1.1 | D92: Exterior de Fachada de 0,15 a la Vista | E92: 522 | F92: gl | G92: 1
B93: 1.7.4.1.1.2 | D93: Exterior de Fachada de 0,15 revocada, donde se indique en los planos de demolición. | E93: 522 | F93: gl | G93: 1
B94: 1.7.4.1.1.3 | D94: Interior común de 0,15, donde se indique en los planos . | E94: 522 | F94: gl | G94: 1
B95: 1.7.4.1.1.4 | D95: Interior común de 0,20, donde se indique en los planos. | E95: 522 | F95: gl | G95: 1
B96: 1.7.4.1.1.5 | D96: Interior común de 0,30, donde se indique en los planos. | E96: 522 | F96: gl | G96: 1
B97: 1.7.4.1.1.6 | D97: Revoques, interior y exterior completo. | E97: 522 | F97: gl | G97: 1
B98: 1.7.4.2 | D98: Pisos | E98: 522
B99: 1.7.4.1.2.1 | D99: Piso de H°A° en Retén. | E99: 522 | F99: gl | G99: 1
B100: 1.7.4.1.2.2 | D100: Piso de Granito Reconstituido, completo. | E100: 522 | F100: gl | G100: 1
B101: 1.7.4.1.2.3 | D101: Piso Cerámico, completo | E101: 522 | F101: gl | G101: 1
B102: 1.7.4.1.2.4 | D102: Zócalo de Granito Reconstituído, completo | E102: 522 | F102: gl | G102: 1
B103: 1.7.4.1.2.5 | D103: Contrapisos en áreas de Sanitarios para remover cañerías y accesorios | E103: 522 | F103: gl | G103: 1
B104: 1.7.4.3 | D104: Revestimientos
B105: 1.7.4.3.1 | D105: De Piedra exterior en Fachadas | E105: 522 | F105: gl | G105: 1
B106: 1.7.4.3.2 | D106: De cerámica Interior en baños y kitchenette, completo | E106: 522 | F106: gl | G106: 1
B107: 1.7.4.3.3 | D107: Granito Natural: Remosión de Mesadas y bachas, separadores en Mingitorio y otros elementos de Granito en Sanitarios y Kitchenet. Deberán ser removidos con precaución y trasladados a Depósito. | E107: 522 | F107: gl | G107: 1
B108: 1.7.4.4 | D108: Mamparas: Remoción y traslado a depósito. | E108: 522 | F108: gl | G108: 1
B109: 1.7.4.5 | D109: Cielorrasos: Demolición de junta tomada y remoción de los removibles, completo | E109: 522 | F109: gl | G109: 1
B110: 1.7.4.6 | D110: Aberturas | E110: 522
B111: 1.7.4.6.1 | D111: Aberturas de Madera: Demolición en anclaje de marcos y Retiro del conjunto, marcos y puertas. Completo. | E111: 522 | F111: gl | G111: 1
B112: 1.7.4.6.2 | D112: Aberturas de Aluminio Vidriadas, completo. | E112: 522 | F112: gl | G112: 1
B113: 1.7.4.6.3 | D113: Aberturas de Metálicas. Marcos y Puertas, completo | E113: 522 | F113: gl | G113: 1
B114: 1.7.4.7 | D114: AZOTEA: Demolición de pisos de tejuelita, coniza perimetral, remosión de contrapisos, aislación, H°A° y otras demoliciones necesarias para renovar la aislación y las nuevas definiciones. | E114: 522 | F114: gl | G114: 1
B115: 1.7.4.8 | D115: Remoción de Artefactos de iluminación, todo el bloque. | E115: 522 | F115: gl | G115: 1
B116: 1.7.4.9 | D116: Remomoción de Equipos de Climatización, todo el bloque | E116: 522 | F116: gl | G116: 1
B117: 1.7.4.10 | D117: Remoción de Ductos Eléctricos y de Climatización, cajas, bandejas, Cables y otros elementos existentes sobre el Cielorraso y Gabinetes Técnicos en cada piso del bloque. | E117: 522 | F117: gl | G117: 1
B118: 1.7.4.11 | D118: Remoción y traslado de los Muebles existentes en el bloque, a Depósito a cargo del Contratista. En caso de que la Circuscripción le asigne otro destino, deberá estar suficientemente documentado. | E118: 522 | F118: gl | G118: 1
B119: 1.7.4.12 | D119: Remoción y traslado Carteles de Señalización a Depósito en custodia de la Contratista. | E119: 522 | F119: gl | G119: 1
B120: 1.7.4.13 | D120: Remoción y traslado a Depósito de artefactos y equipos y dispositivos de Instalaciones Especiales( CCTV, Detección de Incendios e Intrusos, Sistemas de Sonorización, Controles de acceso y otros sistemas instalados) | E120: 522 | F120: gl | G120: 1
B121: 1.7.4.14 | D121: Remoción y traslado de artefactos sanitarios y griferías, en todo el Bloque. | E121: 522 | F121: gl | G121: 1
B122: 1.7.4.15 | D122: Remoción de cañería de agua y desagues | E122: 522 | F122: gl | G122: 1
B123: 1.7.4.16 | D123: Remoción y traslado de equipos, muebles e instalaciones existentes en la Sala de Control. | E123: 522 | F123: gl | G123: 1
B124: 1.7.5 | D124: DEMOLICIONES Y REMOCIONES EN EL EDIFICIO - BLOQUE C
B125: 1.7.5.1 | D125: Mamposterias | E125: 522
B126: 1.7.5.1.1.1 | D126: Exterior de Fachada de 0,15 a la Vista | E126: 522 | F126: gl | G126: 1
B127: 1.7.5.1.1.2 | D127: Exterior de Fachada de 0,15 revocada, donde se indique en los planos de demolición. | E127: 522 | F127: gl | G127: 1
B128: 1.7.5.1.1.3 | D128: Interior común de 0,15, donde se indique en los planos . | E128: 522 | F128: gl | G128: 1
B129: 1.7.5.1.1.4 | D129: Interior común de 0,20, donde se indique en los planos. | E129: 522 | F129: gl | G129: 1
B130: 1.7.5.1.1.5 | D130: Interior común de 0,30, donde se indique en los planos. | E130: 522 | F130: gl | G130: 1
B131: 1.7.5.1.1.6 | D131: Revoques, interior y exterior completo. | E131: 522 | F131: gl | G131: 1
B132: 1.7.5.2 | D132: Pisos | E132: 522
B133: 1.7.5.1.2.1 | D133: Piso de H°A° en Retén. | E133: 522 | F133: gl | G133: 1
B134: 1.7.5.1.2.2 | D134: Piso de Granito Reconstituido, completo. | E134: 522 | F134: gl | G134: 1
B135: 1.7.5.1.2.3 | D135: Piso Cerámico, completo | E135: 522 | F135: gl | G135: 1
B136: 1.7.5.1.2.4 | D136: Zócalo de Granito Reconstituído, completo | E136: 522 | F136: gl | G136: 1
B137: 1.7.5.1.2.5 | D137: Contrapisos en áreas de Sanitarios para remover cañerías y accesorios | E137: 522 | F137: gl | G137: 1
B138: 1.7.5.3 | D138: Revestimientos | E138: 522
B139: 1.7.5.3.1 | D139: De Piedra exterior en Fachadas | E139: 522 | F139: gl | G139: 1
B140: 1.7.5.3.2 | D140: De cerámica Interior en baños y kitchenette, completo | E140: 522 | F140: gl | G140: 1
B141: 1.7.5.4 | D141: Mamparas: Remoción y traslado a depósito. | E141: 522 | F141: gl | G141: 1
B142: 1.7.5.5 | D142: Cielorrasos: Demolición de junta tomada y remoción de los removibles, completo | E142: 522 | F142: gl | G142: 1
B143: 1.7.5.6 | D143: Aberturas
B144: 1.7.5.6.1 | D144: Aberturas de Madera: Demolición en anclaje de marcos y Retiro del conjunto, marcos y puertas. Completo. | E144: 522 | F144: gl | G144: 1
B145: 1.7.5.6.2 | D145: Aberturas de Aluminio Vidriadas, completo. | E145: 522 | F145: gl | G145: 1
B146: 1.7.5.6.3 | D146: Aberturas de Metálicas. Marcos y Puertas, completo | E146: 522 | F146: gl | G146: 1
B147: 1.7.5.7 | D147: Remoción del Techo Metálico y traslado a Depósito de sus componentes. | E147: 522 | F147: gl | G147: 1
B148: 1.7.5.8 | D148: Remoción de Cañería de agua y desagues | E148: 522 | F148: gl | G148: 1
B149: 1.7.5.9 | D149: Remoción de Artefactos de iluminación, todo el bloque. | E149: 522 | F149: gl | G149: 1
B150: 1.7.5.10 | D150: Remomoción de Equipos de Climatización, todo el bloque | E150: 522 | F150: gl | G150: 1
B151: 1.7.5.11 | D151: Remoción de Ductos Eléctricos y de Climatización, cajas, bandejas, Cables y otros elementos existentes sobre el Cielorraso y Gabinetes Técnicos en cada piso del bloque. | E151: 522 | F151: gl | G151: 1
B152: 1.7.5.12 | D152: Remoción y traslado de los Muebles existentes en el bloque, a Depósito a cargo del Contratista. En caso de que la Circuscripción le asigne otro destino, deberá estar suficientemente documentado. | E152: 522 | F152: gl | G152: 1
B153: 1.7.5.13 | D153: Remoción y traslado Carteles de Señalización a Depósito en custodia de la Contratista. | E153: 522 | F153: gl | G153: 1
B154: 1.7.5.14 | D154: Remoción y traslado a Depósito de artefactos y equipos y dispositivos de Instalaciones Especiales( CCTV, Detección de Incendios e Intrusos, Sistemas de Sonorización, Controles de acceso y otros sistemas instalados) | E154: 522 | F154: gl | G154: 1
B155: 1.7.5.15 | D155: Remoción y traslado de artefactos sanitarios y griferías, en todo el Bloque. | E155: 522 | F155: gl | G155: 1
B156: 1.7.5.16 | D156: Remoción de cañería de agua y desagues | E156: 522 | F156: gl | G156: 1
B157: 1.7.5.17 | D157: Remoción y traslado de equipos, muebles e instalaciones existentes en la Sala de Control. | E157: 522 | F157: gl | G157: 1
B158: 1.7.5.18 | D158: Remoción y traslado de aberturas de aberturas metálicas | E158: 522 | F158: gl | G158: 1
B159: 1.7.5.19 | D159: Remoción y traslado de aberturas de aluminio y vidriadas | E159: 522 | F159: gl | G159: 1
B160: 2 | C160: B | D160: MOVIMIENTO DE SUELO
B161: 2.1 | D161: Bloques A, B, C y Exteriores
B162: 2.1.1 | D162: Excavación
B163: 2.1.1.1 | C163: B.1 | D163: Desbroce y limpieza posterior a las demoliciones de pisos, muros y otras construcciónes realizadas en los espacios exteriores. | E163: 522 | F163: gl | G163: 1
B164: 2.1.1.2 | C164: B.1 | D164: Excavación para subsuelos del edificio en el área considerada. | E164: 522 | F164: m3 | G164: =1200*4+1400*4 -> 10400
B165: 2.1.1.3 | C165: B.1 - B.3 | D165: De suelo cabezales y vigas de fundación | E165: 522 | F165: m3 | G165: =2*2*1.5*30 -> 180
B166: 2.1.1.4 | C166: B.2 | D166: De suelo para zapata de Escalinatas, Muros y Rampas. | E166: 522 | F166: m3 | G166: 40
B167: 2.1.1.5 | C167: B.1-B.2 | D167: Excavación para Tanques Sumideros y Cámaras | E167: 522 | F167: m3 | G167: =0.5*40+1*10 -> 30
B168: 2.1.1.6 | C168: B.1-B.2 | D168: En suelo para Sumideros pluviales y de drenaje; caja de ascensor. | E168: 522 | F168: m3 | G168: 220
B169: 2.1.2 | C169: B.4 | D169: Relleno y compactación | E169: 522
B170: 2.1.2.1 | C170: B.4 | D170: En fundaciones en zapata corrida de pantallas y escalera, pérgolas, otros. | E170: 522 | F170: m3 | G170: 480
B171: 2.1.2.2 | C171: B.4 | D171: En áreas de implantación y adyacente acajas de ascensores; reservorios y registros. | E171: 522 | F171: m3 | G171: =+(1200+1400)*0.3+50 -> 830
B172: 2.1.2.3 | C172: B.4 | D172: En base de contrapisos y pisos, interior y exterior del edificio. | E172: 522 | F172: m3 | G172: 880
B173: 2.1.2.4 | C173: B.4 | D173: En jardinería. | E173: 522 | F173: m3 | G173: =400*0.5 -> 200
B174: 2.1.2.5 | C174: B.4 | D174: En áreas de pisos, camineros, veredas, rampas y escaleras exteriores hasta cota de contrapiso. | E174: 522 | F174: m3 | G174: =2400*0.2 -> 480
B175: 2.2 | D175: Bloques D, E, F
B176: 2.2.1 | D176: Excavación
B177: 2.2.1.1 | C177: B.1 | D177: Desbroce y limpieza posterior a las demoliciones a ser ejecutadas en el área de trabajo | E177: 522 | F177: gl | G177: 1
B178: 2.2.1.2 | C178: B.1 | D178: Excavación para subsuelos del edificio en el área considerada. | E178: 522 | F178: m3 | G178: =54*19*8+612*3 -> 10044
B179: 2.2.1.3 | C179: B.1 - B.3 | D179: De suelo cabezales y vigas de fundación | E179: 522 | F179: m3 | G179: =2*2*1.5*20 -> 120
B180: 2.2.1.4 | C180: B.2 | D180: De suelo para zapata en Rampa. | E180: 522 | F180: m3 | G180: =40*1.2 -> 48
B181: 2.2.1.5 | C181: B.1 | D181: Adyacente a pantallas de subsuelos | E181: 522 | F181: m3 | G181: =+(20*4+(60+35)*3+40*3)*0.8 -> 388
B182: 2.2.2 | C182: B.4 | D182: Relleno y Compactación
B183: 2.2.2.1 | C183: B.4 | D183: En áreas de implantación y adyacente acajas de ascensores; reservorios y registros. | E183: 522 | F183: m3 | G183: =+(54*19+612)*0.3+50 -> 541.4
B184: 2.2.2.2 | C184: B.4 | D184: En fundaciones en zapata corrida de pantallas y escalera, pérgolas, otros. | E184: 522 | F184: m3 | G184: =105*0.8*3+45*0.8*2 -> 324
B185: 3 | C185: C | D185: CIMENTACIONES
B186: 3.1 | C186: C.3 | D186: Pilotes perforados en Bloques D, E, F.
B187: 3.1.1 | C187: C.3 | D187: Pilotes perforados de 50 cm de diametro, soporte de Pantallas y Pilares estructurales y contención de suelos en el proceso de ejecución de subsuelos, profundidad de implantación, como mínimo 13 metros del nivel natural de suelo. | E187: 522 | F187: un | G187: 65
B188: 3.1.2 | C188: C.3 | D188: Pilotes perforados de 40 cm de diametro, soporte de Pantallas y Pilares estructurales y contención de suelos en el proceso de ejecución de subsuelos, profundidad de implantación, como mínimo 13 metros del nivel natural de suelo. | E188: 522 | F188: un | G188: 105
B189: 3.1.3 | C189: C.3 | D189: Pilote Estructural de 150 cm de diametro. Cota de implantación a -13 metros del nivel natural del suelo existente como mínimo. | E189: 522 | F189: un | G189: 26
B190: 3.1.4 | C190: C.3 | D190: Pilote Estructural de 120 cm de diametro. Cota de implantación a -13 metros del nivel natural del suelo existente como mínimo. | E190: 522 | F190: un | G190: 14
B191: 3.1.5 | C191: C.3 | D191: Pilote Estructural de 80 cm de diametro. Cota de implantación a -13 metros del nivel natural del suelo existente como mínimo. | E191: 522 | F191: un | G191: 1
B192: 3.2 | C192: C.5 | D192: Cabezales
B193: 3.2.1 | D193: De 610x160 h=150 | E193: 522 | F193: un | G193: 8
B194: 3.2.2 | D194: De 490x130 h=120 | E194: 522 | F194: un | G194: 6
B195: 3.2.3 | D195: De 160x160 h=150 | E195: 522 | F195: un | G195: 10
B196: 3.2.4 | D196: De 130x130 h=130 | E196: 522 | F196: un | G196: 5
B197: 3.2.5 | D197: De 100x100 h=100 | E197: 522 | F197: un | G197: 1
B198: 3.2.6 | D198: De 70x80 L = 175 | E198: 522 | F198: gl | G198: 1
B199: 3.3 | D199: Refuerzos y ampliación del Edificio existente, Bloque A.
B200: 3.3.1 | C200: C.3 | D200: Pilotes de 60cm de diametro x 12m de profundidad. | E200: 522 | F200: un | G200: 15
B201: 3.3.2 | C201: C.3 | D201: Pilotines de 30cm de diametro x 10m de profundidad. | E201: 522 | F201: un | G201: 64
... 3672 more rows

Sheet A.2 Climatizacion
B1: =+[1]Resumen!B1 -> CORTE SUPREMA DE JUSTICIA - PROGRAMA DE LAS NACIONES UNIDAS PARA EL DESARROLLO
B2: =+[1]Resumen!B2 -> "PROGRAMA DE INFRAESTRUCTURA EDILICIA CSJ - PNUD"
B3: =+Resumen!B3 -> SDP/14311/642/2021 - CONSTRUCCION DE LAS OBRAS CIVILES, INSTALACIONES Y MANTENIMIENTO POSTERIOR - AMPLIACION DEL PALACIO DE JUSTICIA DE SAN LORENZO
B5: A.2 PLANILLA DE CÓMPUTO MÉTRICO Y PRESUPUESTO - SISTEMA DE CLIMATIZACION
B6: Ítem | C6: Cód. | D6: Descripción de Rubros | E6: OG | F6: Un | G6: Cantidad | H6: Precio Unit. | I6: Precio Total
C7: E.T. | H7: Gs. Iva Incluido | I7: Gs. Iva Incluido
B8: 1. EQUIPOS
B9: A - AIRE ACONDICIONADO
B10: A.2.1.A1 | D10: Unidad Enfriadora de Agua de 90 TR, compresores tipo SCROLL, Alta eficiencia EER 3 o superior, bajo nivel sonoro y kit hidronico incluido de fabrica. | E10: 522 | F10: un | G10: 3
B11: A.2.1.A2 | D11: Fan Coil tipo horizontal para conductos, de 3,50 kW | E11: 522 | F11: un | G11: 38
B12: A.2.1.A3 | D12: Fan Coil tipo horizontal para conductos, de 5,20 kW | E12: 522 | F12: un | G12: 108
B13: A.2.1.A4 | D13: Fan Coil tipo horizontal para conductos, de 7,15 kW | E13: 522 | F13: un | G13: 19
B14: A.2.1.A5 | D14: Fan Coil tipo horizontal para conductos, de 10,5 kW | E14: 522 | F14: un | G14: 54
B15: A.2.1.A6 | D15: Fan Coil tipo horizontal para conductos, de 13,5 kW | E15: 522 | F15: un | G15: 27
B16: A.2.1.A7 | D16: Fan Coil tipo horizontal para conductos, de 17,5 kW | E16: 522 | F16: un | G16: 19
B17: A.2.1.A8 | D17: Unidad de Recuperador de Calor, con inyeccion y extraccion de aire filtrado de 1.200 m3/h (prever 2 juegos de recambio de filtros F7 y M5 por unidad). Con controlador para BMS. | E17: 522 | F17: un | G17: 22
B18: A.2.1.A9 | D18: Unidad de Recuperador de Calor, con inyeccion y extraccion de aire filtrado de 1.600 m3/h (prever 2 juegos de recambio de filtros F7 y M5 por unidad). Con controlador para BMS. | E18: 522 | F18: un | G18: 24
B19: A.2.1.A10 | D19: Bomba de agua de 200m3/h @ 30 mca. Secundaria. Con variadador de frecuencia incorporado. Vertical en linea acople separado. Específica para HVAC. | E19: 522 | F19: un | G19: 2
B20: A.2.1.A11 | D20: Tanque de expansión 500 lts tipo botellón, polipropileno, montado en azotea | E20: 522 | F20: un | G20: 1
B21: A.2.1.A12 | D21: Válvula Mariposa principal de apertura y cierre, de 8" | E21: 522 | F21: un | G21: 2
B22: A.2.1.A13 | D22: Válvula Combinada, regulación, cierre y retención de 8" | E22: 522 | F22: gl | G22: 2
B23: A.2.1.A14 | D23: Guía de Succión con Filtro de 6" | E23: 522 | F23: un | G23: 2
B24: A.2.1.A15 | D24: Válvulas motorizadas de tres vías para los fan coils. | E24: 522 | F24: un | G24: 24
B25: A.2.1.A16 | D25: Válvulas motorizadas de dos vías, on/off o modulante para caudal de 0,6 m3/h. | E25: 522 | F25: un | G25: 35
B26: A.2.1.A17 | D26: Válvulas motorizadas de dos vías, on/off o modulante para caudal de 0,9 m3/h. | E26: 522 | F26: un | G26: 100
B27: A.2.1.A18 | D27: Válvulas motorizadas de dos vías, on/off o modulante para caudal de 1,8 m3/h. | E27: 522 | F27: un | G27: 66
B28: A.2.1.A19 | D28: Válvulas motorizadas de dos vías, on/off o modulantepara caudal de 1,23 m3/h. | E28: 522 | F28: un | G28: 40
B29: A.2.1.A20 | D29: Controlador de temperatura ambiente con selector de encendido y apagado, control de velocidad del ventilador y de temperatura y comunicación a protocolo abierto para integración a BMS y contacto magnetico para abertura de ventanas. más reserva (25un.) | E29: 522 | F29: un | G29: 290
B30: A.2.1.A21 | D30: Unidad split con evaporador baja silueta, de 48,000 btu/h | E30: 541 | F30: un | G30: 2
B31: B - VENTILACIÓN FORZADA
B32: A.2.1.B1 | D32: Extractor tipo JETFAN de 3.600 m3/h subsuelo 1 | E32: 522 | F32: un | G32: 6
B33: A.2.1.B2 | D33: Detectores de monoxido de carbono (CO) para accionamiento JETFAN | E33: 522 | F33: un | G33: 6
B34: A.2.1.B3 | D34: Extractor para cocina con colector de grasa de 7.600 m3/h Comedor NIVEL4 | E34: 522 | F34: un | G34: 1
B35: A.2.1.B4 | D35: Extractor para cocina con colector de grasa de 2.000 m3/h Cocina PB | E35: 522 | F35: un | G35: 1
B36: A.2.1.B5 | D36: Extractor Helicoidal tubular 1.200 m3/h y 5mmca NIVEL8 | E36: 522 | F36: un | G36: 1
B37: A.2.1.B6 | D37: Extractor Helicoidal tubular 2,500 m3/h y 5mmca subsuelo1 | E37: 522 | F37: un | G37: 1
B38: A.2.1.B7 | D38: Extractor Helicoidal tubular 1.000 m3/h y 5mmca subsuelo 1 | E38: 522 | F38: un | G38: 1
B39: A.2.1.B8 | D39: Inyector Helicoidal tubular 2,500 m3/h y 5mmca PB | E39: 522 | F39: un | G39: 2
B40: A.2.1.B9 | D40: Inyector Helicoidal tubular 1,200 m3/h y 5mmca NIVEL8 | E40: 522 | F40: un | G40: 1
B41: A.2.1.B10 | D41: Presurizador centrifugo 10.000 m3/h para escaleras de emergencia. | E41: 522 | F41: un | G41: 1
B42: A.2.1.B11 | D42: Presurizador centrifugo 8.000 m3/h para escaleras de emergencia. | E42: 522 | F42: un | G42: 1
B43: 2. MATERIALES, MONTAJE Y PUESTA EN MARCHA
B44: A - PLANTA SUBSUELO 2
C45: IE1 | D45: Aire Acondicionado
B46: A.2.2.A1 | D46: Cañería de polipropileno soldable por termofusión, con aislación. Diametro 75mm | E46: 522 | F46: ml | G46: 58
B47: A.2.2.A2 | D47: Cañería de polipropileno soldable por termofusión, con aislación. Diametro 63mm | E47: 522 | F47: ml | G47: 63
B48: A.2.2.A3 | D48: Cañería de polipropileno soldable por termofusión, con aislación. Diametro 50mm | E48: 522 | F48: ml | G48: 32
B49: A.2.2.A4 | D49: Cañería de polipropileno soldable por termofusión, con aislación. Diametro 40mm | E49: 522 | F49: ml | G49: 18
B50: A.2.2.A5 | D50: Cañería de polipropileno soldable por termofusión, con aislación. Diametro 32mm | E50: 522 | F50: ml | G50: 7
B51: A.2.2.A6 | D51: Cañería de polipropileno soldable por termofusión, con aislación. Diametro 25mm | E51: 522 | F51: ml | G51: 144
B52: A.2.2.A7 | D52: Colocación de equipos adosados a la losa. Fancoil, Unidad Split y Recuperadores de Calor | E52: 522 | F52: un | G52: 14
B53: A.2.2.A8 | D53: Cañerías de drenaje en PVC soldable | E53: 522 | F53: gl | G53: 1
B54: A.2.2.A9 | D54: Conexión de Fancoils, incluyendo llaves de cierre de igual diámetro con las cañerías | E54: 522 | F54: un | G54: 13
B55: A.2.2.A10 | D55: Materiales menores | E55: 522 | F55: gl | G55: 1
B56: A.2.2.A11 | D56: Ductos de paneles tipo ALUPIR, para distribucion de aire. | E56: 522 | F56: m | G56: 250
B57: A.2.2.A12 | D57: Ducto flexible 30 cm | E57: 522 | F57: m | G57: 25
B58: A.2.2.A13 | D58: Ducto flexible 25 cm | E58: 522 | F58: m | G58: 25
B59: A.2.2.A14 | D59: Ducto flexible 20 cm | E59: 522 | F59: m | G59: 19
B60: A.2.2.A15 | D60: Difusor tipo panel de 60,5x60,5 para insuflamiento de aire (p/cielo raso de placas) | E60: 522 | F60: un | G60: 17
B61: A.2.2.A16 | D61: Reja de retorno tipo AR basculante 60,5x60,5 | E61: 522 | F61: un | G61: 8
B62: A.2.2.A17 | D62: Reja tipo VAT 32.5x12.5 | E62: 522 | F62: un | G62: 53
C63: IE1 | D63: Ventilación Forzada
B64: A.2.2.A18 | D64: Difusor circular 30 cm | E64: 522 | F64: un | G64: 3
B65: A.2.2.A19 | D65: Reja VAT 32.5x12.5 para RDC | E65: 522 | F65: un | G65: 8
B66: A.2.2.A20 | D66: Reja de retorno tipo AR basculante 60,5x60,5 | E66: 522 | F66: un | G66: 2
B67: A.2.2.A21 | D67: Ductos de chapa galvanizada. Medida según plano. | E67: 522 | F67: m | G67: 144
B68: A.2.2.A22 | D68: Ducto flexible 25 cm | E68: 522 | F68: m | G68: 19
B69: A.2.2.A23 | D69: Ducto flexible 20 cm | E69: 522 | F69: m | G69: 19
B70: A.2.2.A24 | D70: Ducto flexible 15 cm | E70: 522 | F70: m | G70: 25
B71: B - SUBSUELO 1
C72: IE1 | D72: Aire Acondicionado
B73: A.2.2.B1 | D73: Cañería de polipropileno soldable por termofusión, con aislación. Diametro 63mm | E73: 522 | F73: ml | G73: 74
B74: A.2.2.B2 | D74: Cañería de polipropileno soldable por termofusión, con aislación. Diametro 50m | E74: 522 | F74: ml | G74: 16
B75: A.2.2.B3 | D75: Cañería de polipropileno soldable por termofusión, con aislación. Diametro 40mm | E75: 522 | F75: ml | G75: 7
B76: A.2.2.B4 | D76: Cañería de polipropileno soldable por termofusión, con aislación. Diametro 32mm | E76: 522 | F76: ml | G76: 10
B77: A.2.2.B5 | D77: Cañería de polipropileno soldable por termofusión, con aislación. Diametro 25mm | E77: 522 | F77: ml | G77: 184
B78: A.2.2.B6 | D78: Colocación de equipos adosados a la losa. Fancoil, Unidad Split y Recuperadores de Calor | E78: 522 | F78: un | G78: 14
B79: A.2.2.B7 | D79: Cañerías de drenaje en PVC soldable | E79: 522 | F79: gl | G79: 1
B80: A.2.2.B8 | D80: Conexión de Fancoils, incluyendo llaves de cierre de igual diámetro con las cañerías | E80: 522 | F80: un | G80: 12
B81: A.2.2.B9 | D81: Materiales menores | E81: 522 | F81: gl | G81: 1
B82: A.2.2.B10 | D82: Ductos de paneles tipo ALUPIR, para distribucion de aire. | E82: 522 | F82: m | G82: 94
B83: A.2.2.B11 | D83: Ducto flexible 30 cm | E83: 522 | F83: m | G83: 25
B84: A.2.2.B12 | D84: Ducto flexible 25 cm | E84: 522 | F84: m | G84: 50
B85: A.2.2.B13 | D85: Ducto flexible 20 cm | E85: 522 | F85: m | G85: 38
B86: A.2.2.B14 | D86: Ducto flexible 15 cm | E86: 522 | F86: m | G86: 19
B87: A.2.2.B15 | D87: Difusor para insuflamiento de aire DLQ 45x45 (p/cielo raso a junta tomada) | E87: 522 | F87: un | G87: 8
B88: A.2.2.B16 | D88: Difusor tipo panel de 60,5x60,5 para insuflamiento de aire (p/cielo raso de placas) | E88: 522 | F88: un | G88: 22
B89: A.2.2.B17 | D89: Reja de retorno tipo AR basculante 60,5x60,5 | E89: 522 | F89: un | G89: 17
B90: A.2.2.B18 | D90: Reja tipo VAT 32.5x12.5 | E90: 522 | F90: un | G90: 3
C91: IE1 | D91: Ventilación Forzada
B92: A.2.2.B19 | D92: Difusor circular 30 cm | E92: 522 | F92: un | G92: 3
B93: A.2.2.B20 | D93: Reja VAT 32.5x12.5 para RDC | E93: 522 | F93: un | G93: 8
B94: A.2.2.B21 | D94: Reja VAT 42.5x22.5 para RDC | E94: 522 | F94: un | G94: 2
B95: A.2.2.B22 | D95: Reja VAT 52.5x22.5 para RDC | E95: 522 | F95: un | G95: 1
B96: A.2.2.B23 | D96: Reja de retorno tipo AR basculante 60,5x60,5 | E96: 522 | F96: un | G96: 2
B97: A.2.2.B24 | D97: Ductos de chapa galvanizada. Medida según plano. | E97: 522 | F97: m | G97: 270
B98: A.2.2.B25 | D98: Ducto flexible 30 cm | E98: 522 | F98: m | G98: 25
B99: A.2.2.B26 | D99: Ducto flexible 20 cm | E99: 522 | F99: m | G99: 13
B100: A.2.2.B27 | D100: Ducto flexible 15 cm | E100: 522 | F100: m | G100: 19
B101: A.2.2.B28 | D101: Montaje de extractor tipo JETFAN | E101: 522 | F101: un | G101: 6
B102: A.2.2.B29 | D102: Montaje de Presurizador centrifugo para escaleras de emergencia. | E102: 522 | F102: un | G102: 1
B103: A.2.2.B30 | D103: Reja VAT 40 cm x 40 cm (para escalera presurizada) | E103: 522 | F103: un | G103: 10
B104: A.2.2.B31 | D104: Montaje de extractor helicoidal tubular | E104: 522 | F104: un | G104: 2
B105: A.2.2.B32 | D105: Materiales menores | E105: 522 | F105: gl | G105: 1
B106: C - PLANTA BAJA
C107: IE1 | D107: Aire Acondicionado
B108: A.2.2.C1 | D108: Cañería de polipropileno soldable por termofusión, con aislación. Diametro 90mm | E108: 522 | F108: ml | G108: 67
B109: A.2.2.C2 | D109: Cañería de polipropileno soldable por termofusión, con aislación. Diametro 75mm | E109: 522 | F109: ml | G109: 17
B110: A.2.2.C3 | D110: Cañería de polipropileno soldable por termofusión, con aislación. Diametro 63mm | E110: 522 | F110: ml | G110: 114
B111: A.2.2.C4 | D111: Cañería de polipropileno soldable por termofusión, con aislación. Diametro 50m | E111: 522 | F111: ml | G111: 105
B112: A.2.2.C5 | D112: Cañería de polipropileno soldable por termofusión, con aislación. Diametro 40mm | E112: 522 | F112: ml | G112: 45
B113: A.2.2.C6 | D113: Cañería de polipropileno soldable por termofusión, con aislación. Diametro 32mm | E113: 522 | F113: ml | G113: 141
B114: A.2.2.C7 | D114: Cañería de polipropileno soldable por termofusión, con aislación. Diametro 25mm | E114: 522 | F114: ml | G114: 708
B115: A.2.2.C8 | D115: Colocación de equipos adosados a la losa. Fancoil, Unidad Split y Recuperadores de Calor | E115: 522 | F115: un | G115: 52
B116: A.2.2.C9 | D116: Cañerías de drenaje en PVC soldable | E116: 522 | F116: gl | G116: 1
B117: A.2.2.C10 | D117: Conexión de Fancoils, incluyendo llaves de cierre de igual diámetro con las cañerías | E117: 522 | F117: un | G117: 45
B118: A.2.2.C11 | D118: Materiales menores | E118: 522 | F118: gl | G118: 1
B119: A.2.2.C12 | D119: Ductos de paneles tipo ALUPIR, para distribucion de aire. | E119: 522 | F119: m | G119: 445
B120: A.2.2.C13 | D120: Ducto flexible 35 cm | E120: 522 | F120: m | G120: 19
B121: A.2.2.C14 | D121: Ducto flexible 30 cm | E121: 522 | F121: m | G121: 88
B122: A.2.2.C15 | D122: Ducto flexible 25 cm | E122: 522 | F122: m | G122: 138
B123: A.2.2.C16 | D123: Ducto flexible 20 cm | E123: 522 | F123: m | G123: 88
B124: A.2.2.C17 | D124: Ducto flexible 15 cm | E124: 522 | F124: m | G124: 25
B125: A.2.2.C18 | D125: Difusor Circular 30 cm de diametro | E125: 522 | F125: un | G125: 23
B126: A.2.2.C19 | D126: Difusor para insuflamiento de aire DLQ 45x45 (p/cielo raso a junta tomada) | E126: 522 | F126: un | G126: 13
B127: A.2.2.C20 | D127: Difusor tipo panel de 60,5x60,5 para insuflamiento de aire (p/cielo raso de placas) | E127: 522 | F127: un | G127: 79
B128: A.2.2.C21 | D128: Reja de retorno tipo AR basculante 60,5x60,5 | E128: 522 | F128: un | G128: 62
B129: A.2.2.C22 | D129: Reja tipo VAT 32.5x12.5 | E129: 522 | F129: un | G129: 7
B130: A.2.2.C23 | D130: Reja tipo VAT 42.5x22.5 | E130: 522 | F130: un | G130: 1
C131: IE1 | D131: Ventilación Forzada
B132: A.2.2.C24 | D132: Difusor circular 30 cm | E132: 522 | F132: un | G132: 28
B133: A.2.2.C25 | D133: Reja VAT 32.5x12.5 para RDC | E133: 522 | F133: un | G133: 4
B134: A.2.2.C26 | D134: Reja VAT 42.5x22.5 para RDC | E134: 522 | F134: un | G134: 8
B135: A.2.2.C27 | D135: Reja VAT 62.5x42.5 para RDC | E135: 522 | F135: un | G135: 6
B136: A.2.2.C28 | D136: Reja de retorno tipo AR basculante 60,5x60,5 | E136: 522 | F136: un | G136: 8
B137: A.2.2.C29 | D137: Ductos de chapa galvanizada. Medida según plano. | E137: 522 | F137: m | G137: 675
B138: A.2.2.C30 | D138: Ducto flexible 35 cm | E138: 522 | F138: m | G138: 32
B139: A.2.2.C31 | D139: Ducto flexible 30 cm | E139: 522 | F139: m | G139: 25
B140: A.2.2.C32 | D140: Ducto flexible 25 cm | E140: 522 | F140: m | G140: 50
B141: A.2.2.C33 | D141: Ducto flexible 20 cm | E141: 522 | F141: m | G141: 58
B142: A.2.2.C34 | D142: Ducto flexible 15 cm | E142: 522 | F142: m | G142: 100
B143: A.2.2.C35 | D143: Reja VAT 40 cm x 40 cm (para escalera presurizada) | E143: 522 | F143: un | G143: 8
B144: A.2.2.C36 | D144: Montaje de Presurizador centrifugo para escaleras de emergencia. | E144: 522 | F144: un | G144: 1
B145: A.2.2.C37 | D145: Campana de acero inoxidable con sistema de grasero perimetral, descarga para limpieza, filtro trampa en acero inoxidable. Dimensiones 1,10x0,70. H=0,90m, incluye ducto de chapa calv.16 hasta conexión a extractor | E145: 522 | F145: un | G145: 1
B146: A.2.2.C38 | D146: montaje de extractor para cocina con colector de grasa de 2.000 m3/h Cocina Guarderia | E146: 522 | F146: un | G146: 1
B147: A.2.2.C39 | D147: Materiales menores | E147: 522 | F147: gl | G147: 1
B148: D - PRIMER PISO
C149: IE1 | D149: Aire Acondicionado
B150: A.2.2.D1 | D150: Cañería de polipropileno soldable por termofusión, con aislación. Diametro 110mm | E150: 522 | F150: ml | G150: 5
B151: A.2.2.D2 | D151: Cañería de polipropileno soldable por termofusión, con aislación. Diametro 90mm | E151: 522 | F151: ml | G151: 5
B152: A.2.2.D3 | D152: Cañería de polipropileno soldable por termofusión, con aislación. Diametro 75mm | E152: 522 | F152: ml | G152: 83
B153: A.2.2.D4 | D153: Cañería de polipropileno soldable por termofusión, con aislación. Diametro 63mm | E153: 522 | F153: ml | G153: 209
B154: A.2.2.D5 | D154: Cañería de polipropileno soldable por termofusión, con aislación. Diametro 50m | E154: 522 | F154: ml | G154: 93
B155: A.2.2.D6 | D155: Cañería de polipropileno soldable por termofusión, con aislación. Diametro 40mm | E155: 522 | F155: ml | G155: 61
B156: A.2.2.D7 | D156: Cañería de polipropileno soldable por termofusión, con aislación. Diametro 32mm | E156: 522 | F156: ml | G156: 66
B157: A.2.2.D8 | D157: Cañería de polipropileno soldable por termofusión, con aislación. Diametro 25mm | E157: 522 | F157: ml | G157: 514
B158: A.2.2.D9 | D158: Colocación de equipos adosados a la losa. Fancoil, Unidad Split y Recuperadores de Calor | E158: 522 | F158: un | G158: 52
B159: A.2.2.D10 | D159: Cañerías de drenaje en PVC soldable | E159: 522 | F159: gl | G159: 1
B160: A.2.2.D11 | D160: Conexión de Fancoils, incluyendo llaves de cierre de igual diámetro con las cañerías | E160: 522 | F160: un | G160: 45
B161: A.2.2.D12 | D161: Materiales menores | E161: 522 | F161: gl | G161: 1
B162: A.2.2.D13 | D162: Ductos de paneles tipo ALUPIR, para distribucion de aire. | E162: 522 | F162: m | G162: 394
B163: A.2.2.D14 | D163: Ducto flexible 35 cm | E163: 522 | F163: m | G163: 19
B164: A.2.2.D15 | D164: Ducto flexible 30 cm | E164: 522 | F164: m | G164: 107
B165: A.2.2.D16 | D165: Ducto flexible 25 cm | E165: 522 | F165: m | G165: 150
B166: A.2.2.D17 | D166: Ducto flexible 20 cm | E166: 522 | F166: m | G166: 69
B167: A.2.2.D18 | D167: Ducto flexible 15 cm | E167: 522 | F167: m | G167: 25
B168: A.2.2.D19 | D168: Difusor Circular 30 cm de diametro | E168: 522 | F168: un | G168: 20
B169: A.2.2.D20 | D169: Difusor para insuflamiento de aire DLQ 45x45 (p/cielo raso a junta tomada) | E169: 522 | F169: un | G169: 9
B170: A.2.2.D21 | D170: Difusor tipo panel de 60,5x60,5 para insuflamiento de aire (p/cielo raso de placas) | E170: 522 | F170: un | G170: 86
B171: A.2.2.D22 | D171: Reja de retorno tipo AR basculante 60,5x60,5 | E171: 522 | F171: un | G171: 62
B172: A.2.2.D23 | D172: Reja tipo VAT 32.5x12.5 | E172: 522 | F172: un | G172: 4
B173: A.2.2.D24 | D173: Reja tipo VAT 42.5x22.5 | E173: 522 | F173: un | G173: 3
C174: IE1 | D174: Ventilación Forzada
B175: A.2.2.D25 | D175: Difusor circular 30 cm | E175: 522 | F175: un | G175: 23
B176: A.2.2.D26 | D176: Reja VAT 32.5x12.5 para RDC | E176: 522 | F176: un | G176: 2
B177: A.2.2.D27 | D177: Reja VAT 42.5x22.5 para RDC | E177: 522 | F177: un | G177: 6
B178: A.2.2.D28 | D178: Reja VAT 62.5x42.5 para RDC | E178: 522 | F178: un | G178: 6
B179: A.2.2.D29 | D179: Reja de retorno tipo AR basculante 60,5x60,5 | E179: 522 | F179: un | G179: 8
B180: A.2.2.D30 | D180: Ductos de chapa galvanizada. Medida según plano. | E180: 522 | F180: m | G180: 688
B181: A.2.2.D31 | D181: Ducto flexible 35 cm | E181: 522 | F181: m | G181: 32
B182: A.2.2.D32 | D182: Ducto flexible 30 cm | E182: 522 | F182: m | G182: 25
B183: A.2.2.D33 | D183: Ducto flexible 25 cm | E183: 522 | F183: m | G183: 44
B184: A.2.2.D34 | D184: Ducto flexible 20 cm | E184: 522 | F184: m | G184: 25
B185: A.2.2.D35 | D185: Ducto flexible 15 cm | E185: 522 | F185: m | G185: 125
B186: A.2.2.D36 | D186: Montaje de inyector helicoidal tubular | E186: 522 | F186: un | G186: 2
B187: A.2.2.D37 | D187: Campana de acero inoxidable con sistema de grasero perimetral, descarga para limpieza, filtro trampa en acero inoxidable. Dimensiones 3,00x0,90. H=0,90m. incluye ducto de chapa calv.16 hasta conexión a extractor | E187: 522 | F187: un | G187: 1
B188: A.2.2.D38 | D188: Materiales menores | E188: 522 | F188: gl | G188: 1
B189: E - SEGUNDO PISO
C190: IE1 | D190: Aire Acondicionado
B191: A.2.2.E1 | D191: Cañería de polipropileno soldable por termofusión, con aislación. Diametro 90mm | E191: 522 | F191: ml | G191: 5
B192: A.2.2.E2 | D192: Cañería de polipropileno soldable por termofusión, con aislación. Diametro 75mm | E192: 522 | F192: ml | G192: 5
B193: A.2.2.E3 | D193: Cañería de polipropileno soldable por termofusión, con aislación. Diametro 63mm | E193: 522 | F193: ml | G193: 163
B194: A.2.2.E4 | D194: Cañería de polipropileno soldable por termofusión, con aislación. Diametro 50m | E194: 522 | F194: ml | G194: 171
B195: A.2.2.E5 | D195: Cañería de polipropileno soldable por termofusión, con aislación. Diametro 40mm | E195: 522 | F195: ml | G195: 121
B196: A.2.2.E6 | D196: Cañería de polipropileno soldable por termofusión, con aislación. Diametro 32mm | E196: 522 | F196: ml | G196: 70
B197: A.2.2.E7 | D197: Cañería de polipropileno soldable por termofusión, con aislación. Diametro 25mm | E197: 522 | F197: ml | G197: 397
B198: A.2.2.E8 | D198: Colocación de equipos adosados a la losa. Fancoil, Unidad Split y Recuperadores de Calor | E198: 522 | F198: un | G198: 47
B199: A.2.2.E9 | D199: Cañerías de drenaje en PVC soldable | E199: 522 | F199: gl | G199: 1
B200: A.2.2.E10 | D200: Conexión de Fancoils, incluyendo llaves de cierre de igual diámetro con las cañerías | E200: 522 | F200: un | G200: 40
B201: A.2.2.E11 | D201: Materiales menores | E201: 522 | F201: gl | G201: 1
... 265 more rows

Sheet A.3 Integracion Elec.
B1: CORTE SUPREMA DE JUSTICIA - PROGRAMA DE LAS NACIONES UNIDAS PARA EL DESARROLLO
B2: "PROGRAMA DE INFRAESTRUCTURA EDILICIA CSJ - PNUD"
B3: =+Resumen!B3 -> SDP/14311/642/2021 - CONSTRUCCION DE LAS OBRAS CIVILES, INSTALACIONES Y MANTENIMIENTO POSTERIOR - AMPLIACION DEL PALACIO DE JUSTICIA DE SAN LORENZO
B5: A.3 PLANILLA DE CÓMPUTO MÉTRICO Y PRESUPUESTO - INTEGRACIÓN ELECTRÓNICA
B6: Ítem | C6: Cód. | D6: Descripción de Rubros | E6: OG | F6: Un | G6: Cant. | H6: Precio Unit. | I6: Precio Total
C7: E.T. | H7: Gs. Iva Incluido | I7: Gs. Iva Incluido
B8: 1. EQUIPOS
B9: A - SISTEMA DE INTEGRACION ELECTRONICA
B10: A.3.1.A1 | C10: IE2 | D10: Servidor principal del sistema, computador de factor de forma para montaje en rack tipo servidor con licencia e instalación de la última versión sistema operativo Windows Profesional. | E10: 543 | F10: un | G10: 1
B11: A.3.1.A2 | C11: IE2 | D11: Computador personal, con tarjeta de video para 4 monitores HDMI, para la gestion de todos los componentes de los sistemas del edificio. Teclado y raton de la misma marca que el monitor. Sistema operativo según especificaciones técnicas. | E11: 543 | F11: un | G11: 2
B12: A.3.1.A3 | C12: IE2 | D12: UPS de 3.000 VA para PC de supervisión y servidor | E12: 543 | F12: un | G12: 3
B13: A.3.1.A4 | C13: IE2 | D13: Software de adquisición de datos e interfaz de usuario, con capacidad para control de al menos 5.000 puntos, protocolos de comunicación KNX, BACnet, Modbus, con base de datos SQL | E13: 538 | F13: un | G13: 1
B14: A.3.1.A5 | C14: IE2 | D14: Modulo de relays con conexión a bus KNX para montaje en riel DIN, contactores y accesorios para el sistema de control de luces interiores y exteriores del Edificio. | E14: 538 | F14: gl | G14: 1
B15: A.3.1.A7 | C15: IE2 | D15: Analizador de redes para montaje en tablero eléctrico protocolizado, misma marca que el tablero, con comunicación a protocolo abierto Modbus o BACnet | E15: 538 | F15: un | G15: 3
B16: A.3.1.A8 | C16: IE2 | D16: Modulo de relays, contactores y equipos activos para el control y comando de tres (3) portones eléctricos. | E16: 538 | F16: gl | G16: 1
B17: A.3.1.A9 | C17: IE2 | D17: Modulo de entradas para integración al bus KNX para el monitorio e indicación de fallas de los distintos sistemas de bombas de agua. Sistema de presurizacion de agua corriente. Sistema de bombas de drenaje. Sistema de Extincion de Incendios. Bombas dosificadoras de cloro, sensores de nivel de agua en tanques. | E17: 538 | F17: gl | G17: 1
B18: A.3.1.A10 | C18: IE2 | D18: Monitor LCD-LED de 21" | E18: 543 | F18: un | G18: 6
B19: A.3.1.A11 | C19: IE2 | D19: Monitor LCD-LED de 32" | E19: 543 | F19: un | G19: 2
B20: A.3.1.A12 | C20: IE2 | D20: Soporte para 3 monitores de 21", Base metalica, regulacion de altura metalica, con regulacion de giro e inclinacion independiente. | E20: 541 | F20: un | G20: 6
B21: A.3.1.A13 | C21: IE2 | D21: Soporte para monitor de 32". Base metalica para montar sobre estructura de madera de montante, permite el giro del monitor e inclinación | E21: 541 | F21: un | G21: 6
B22: A.3.1.A14 | C22: IE2 | D22: Montante para bajada de cables de señales debiles y electricidad, estructura metalica revestida con madera aglomerada melamina, sistema de desarme de una cara con tornillos. Medidas ver plano INT 15 | E22: 538 | F22: un | G22: 2
B23: A.3.1.A15 | C23: IE2 | D23: Modulo de estacion de trabajo. Estructura con pedestales metálicos de tubos de acero de sección 50x30mm y 1,2mm de espesor, pintura epoxi en polvo aplicado electroestáticamente, tapas molduradas de PVC en los extremos de los tubos. Plano de trabajo y tapa cubre piernas en placa melamínica de baja presión (BP) de 18mm color a definir; cantoneras de 15x30mm molduradas de goma color negro; reguladores metálicos de altura con bases de goma. Sujeción entre placa y estructura metalica con angulos metalicos y tornillos. Medidas ver plano INT 15 | E23: 541 | F23: un | G23: 6
B24: B - SISTEMA DE ALARMA CONTRA INTRUSOS Y SEGURIDAD
B25: A.3.1.B1 | C25: IE2 | D25: Central de alarma de 582 zonas con expansores; con módem incorporado que permite conexión a Estación Central de Monitoreo, operada por códigos. La central deberá contar con conexión a algún protocolo de comunicación abierto, KNX serial o IP, BACnet IP o Modbus TCP/IP, para integrarse al BMS, o mediante la provisión de un gateway a alguno de los protocolos citados. | E25: 538 | F25: un | G25: 1
B26: A.3.1.B2 | C26: IE2 | D26: Teclado alfanumérico de control con pantalla de cristal líquido. Con capacidad de desplegar mensajes acerca del estado del sistema e introducción de códigos de activación y desactivación | E26: 543 | F26: un | G26: 4
B27: A.3.1.B3 | C27: IE2 | D27: Batería sellada de GEL 7,5 AH, de bajo mantenimiento. Sin vapores tóxicos | E27: 538 | F27: gl | G27: 1
B28: A.3.1.B4 | C28: IE2 | D28: Sirena de 30W para exterior con caja protectora antisabotaje | E28: 538 | F28: un | G28: 2
B29: A.3.1.B5 | C29: IE2 | D29: Sirena de 20W para interior para alertar a los operarios de la sala de control | E29: 538 | F29: un | G29: 2
B30: A.3.1.B6 | C30: IE2 | D30: Detector de apertura de puertas, ventanas y portones; contacto magnético externo. Para los portones exteriores se debera considerar para esa utilizacion. | E30: 538 | F30: un | G30: 535
B31: A.3.1.B7 | C31: IE2 | D31: Detector de movimiento de doble tecnología. Por rayo infrarrojo pasivo y por microondas, con compensación de temperatura, ajuste de alcance y sensibilidad | E31: 538 | F31: un | G31: 307
B32: A.3.1.B8 | C32: IE2 | D32: Detector de presencia de agua. Ubicado en los tanques de subsuelo a nivel de la cañeria de rebose del tanque. | E32: 538 | F32: un | G32: 4
B33: A.3.1.B9 | C33: IE2 | D33: Botón pulsador de pánico, para situaciones de emergencia | E33: 538 | F33: un | G33: 63
B34: A.3.1.B10 | C34: IE2 | D34: Cerradura electromagnética de alta seguridad para puertas de celdas, fuerza 2.000 libras. Con indicador audible y visual de la apertura; comando desde la sala de control y pulsador indicado en el plano | E34: 538 | F34: un | G34: 8
B35: A.3.1.B11 | C35: IE2 | D35: Cerradura electromagnética para puertas de salas de reuniones, fuerza 650 libras. Con indicador audible y visual de la apertura; comando desde el mostrador | E35: 538 | F35: un | G35: 46
B36: A.3.1.B12 | C36: IE2 | D36: Brazo hidráulico tipo Yale, con mecanismo de retorno automático de puertas | E36: 538 | F36: un | G36: 54
B37: A.3.1.B13 | C37: IE2 | D37: Boton pulsador para apertura de puertas con cerradura electromagnetica | E37: 538 | F37: un | G37: 46
B38: C - CONTROL DE ACCESOS CON TARJETAS DE PROXIMIDAD
B39: A.3.1.C1 | C39: IE2 | D39: Módulo de control de acceso. Placa controladora de 2 lectores y detección magnética de apertura de puerta. La central deberá contar con conexión a algún protocolo de comunicación abierto, KNX serial o IP, BACnet IP o Modbus TCP/IP, para integrarse al BMS, o mediante la provisión de un gateway a alguno de los protocolos citados. | E39: 538 | F39: un | G39: 4
B40: A.3.1.C2 | C40: IE2 | D40: Lectores de tarjetas de proximidad con rango de operación entre 10 y 20cm; detector magnético de apertura de puerta | E40: 538 | F40: un | G40: 7
B41: A.3.1.C3 | C41: IE2 | D41: Cerradura electromagnética de seguridad, fuerza 1.000 libras. Con indicador audible y visual de la apertura; para aberturas de cristal templado o metalicas | E41: 538 | F41: un | G41: 12
B42: A.3.1.C4 | C42: IE2 | D42: Brazo hidráulico tipo Yale, con mecanismo de retorno automático de puertas | E42: 538 | F42: un | G42: 10
B43: A.3.1.C5 | C43: IE2 | D43: Boton pulsador o sensor de proximidad para apertura de puertas con cerradura electromagnetica | E43: 538 | F43: un | G43: 7
B44: A.3.1.C6 | C44: IE2 | D44: Batería sellada de GEL de 7,5 AH de bajo mantenimiento. Libre de vapores tóxicos | E44: 538 | F44: un | G44: 4
B45: A.3.1.C7 | C45: IE2 | D45: Tarjetas de proximidad para identificación personal | E45: 538 | F45: un | G45: 150
B46: 2. MATERIALES, MONTAJE Y PUESTA EN MARCHA
B47: A - SISTEMA DE INTEGRACION ELECTRONICA
B48: A.3.2.A1 | C48: IE2 | D48: Cables, cajas, ductos, conectores y otros materiales menores para la operatividad del sistema. En el Subsuelo 2 | E48: 538 | F48: gl | G48: 1
B49: A.3.2.A2 | C49: IE2 | D49: Cables, cajas, ductos, conectores y otros materiales menores para la operatividad del sistema. En el Subsuelo 1 | E49: 538 | F49: gl | G49: 1
B50: A.3.2.A3 | C50: IE2 | D50: Cables, cajas, ductos, conectores y otros materiales menores para la operatividad del sistema. En Planta Baja | E50: 538 | F50: gl | G50: 1
B51: A.3.2.A4 | C51: IE2 | D51: Cables, cajas, ductos, conectores y otros materiales menores para la operatividad del sistema. En el Primer Piso | E51: 538 | F51: gl | G51: 1
B52: A.3.2.A5 | C52: IE2 | D52: Cables, cajas, ductos, conectores y otros materiales menores para la operatividad del sistema. En el Segundo Piso | E52: 538 | F52: gl | G52: 1
B53: A.3.2.A6 | C53: IE2 | D53: Cables, cajas, ductos, conectores y otros materiales menores para la operatividad del sistema. En el Tercer Piso | E53: 538 | F53: gl | G53: 1
B54: A.3.2.A7 | C54: IE2 | D54: Cables, cajas, ductos, conectores y otros materiales menores para la operatividad del sistema. En el Cuarto Piso | E54: 538 | F54: gl | G54: 1
B55: A.3.2.A8 | C55: IE2 | D55: Cables, cajas, ductos, conectores y otros materiales menores para la operatividad del sistema. En el Quinto Piso | E55: 543 | F55: gl | G55: 1
B56: A.3.2.A9 | C56: IE2 | D56: Cables, cajas, ductos, conectores y otros materiales menores para la operatividad del sistema. En el Sexto Piso | E56: 543 | F56: gl | G56: 1
B57: A.3.2.A10 | C57: IE2 | D57: Cables, cajas, ductos, conectores y otros materiales menores para la operatividad del sistema. En el Séptimo Piso | E57: 538 | F57: gl | G57: 1
B58: A.3.2.A11 | C58: IE2 | D58: Cables, cajas, ductos, conectores y otros materiales menores para la operatividad del sistema. En la Azotea | E58: 538 | F58: gl | G58: 1
B59: A.3.2.A12 | C59: IE2 | D59: Arquitectura y diseño de red, desarrollo de gráficos e interfaz de usuario, parametrización y programación de los puntos y lógica de control y calendarios. | E59: 538 | F59: gl | G59: 1
B60: A.3.2.A13 | C60: IE2 | D60: Integración lógica del sistema de ascensores, generador, alarma contra intrusos, alarma de incendios, control de accesos. | E60: 538 | F60: gl | G60: 1
B61: A.3.2.A14 | C61: IE2 | D61: Instalación, pruebas y puesta en marcha del sistema | E61: 538 | F61: gl | G61: 1
B62: A.3.2.A15 | C62: IE2 | D62: Capacitación y adiestramiento del uso; manuales de operación y mantenimiento | E62: 538 | F62: gl | G62: 1
B63: B - SISTEMA DE ALARMA CONTRA INTRUSOS Y SEGURIDAD
B64: A.3.2.B1 | C64: IE2 | D64: Cables, cajas, ductos, conectores y otros materiales menores para la operatividad del sistema. En el Subsuelo 2 | E64: 538 | F64: gl | G64: 1
B65: A.3.2.B2 | C65: IE2 | D65: Cables, cajas, ductos, conectores y otros materiales menores para la operatividad del sistema. En el Subsuelo 1 | E65: 538 | F65: gl | G65: 1
B66: A.3.2.B3 | C66: IE2 | D66: Cables, cajas, ductos, conectores y otros materiales menores para la operatividad del sistema. En Planta Baja | E66: 538 | F66: gl | G66: 1
B67: A.3.2.B4 | C67: IE2 | D67: Cables, cajas, ductos, conectores y otros materiales menores para la operatividad del sistema. En el Primer Piso | E67: 538 | F67: gl | G67: 1
B68: A.3.2.B5 | C68: IE2 | D68: Cables, cajas, ductos, conectores y otros materiales menores para la operatividad del sistema. En el Segundo Piso | E68: 538 | F68: gl | G68: 1
B69: A.3.2.B6 | C69: IE2 | D69: Cables, cajas, ductos, conectores y otros materiales menores para la operatividad del sistema. En el Tercer Piso | E69: 538 | F69: gl | G69: 1
B70: A.3.2.B7 | C70: IE2 | D70: Cables, cajas, ductos, conectores y otros materiales menores para la operatividad del sistema. En el Cuarto Piso | E70: 538 | F70: gl | G70: 1
B71: A.3.2.B8 | C71: IE2 | D71: Cables, cajas, ductos, conectores y otros materiales menores para la operatividad del sistema. En el Quinto Piso | E71: 538 | F71: gl | G71: 1
B72: A.3.2.B9 | C72: IE2 | D72: Cables, cajas, ductos, conectores y otros materiales menores para la operatividad del sistema. En el Sexto Piso | E72: 538 | F72: gl | G72: 1
B73: A.3.2.B10 | C73: IE2 | D73: Cables, cajas, ductos, conectores y otros materiales menores para la operatividad del sistema. En el Séptimo Piso | E73: 538 | F73: gl | G73: 1
B74: A.3.2.B11 | C74: IE2 | D74: Cables, cajas, ductos, conectores y otros materiales menores para la operatividad del sistema. En la Azotea | E74: 538 | F74: gl | G74: 1
B75: A.3.2.B12 | C75: IE2 | D75: Instalación y puesta en marcha del sistema | E75: 538 | F75: gl | G75: 1
B76: A.3.2.B13 | C76: IE2 | D76: Capacitación y adiestramiento del uso; manuales de operación y mantenimiento | E76: 538 | F76: gl | G76: 1
B77: C - CONTROL DE ACCESOS CON TARJETAS DE PROXIMIDAD
B78: A.3.2.C1 | C78: IE2 | D78: Cables, cajas, ductos, conectores y otros materiales menores para la operatividad del sistema. En el Subsuelo 2 | E78: 538 | F78: gl | G78: 1
B79: A.3.2.C2 | C79: IE2 | D79: Cables, cajas, ductos, conectores y otros materiales menores para la operatividad del sistema. En el Subsuelo 1 | E79: 538 | F79: gl | G79: 1
B80: A.3.2.C3 | C80: IE2 | D80: Cables, cajas, ductos, conectores y otros materiales menores para la operatividad del sistema. En Planta Baja | E80: 538 | F80: gl | G80: 1
B81: A.3.2.C4 | C81: IE2 | D81: Cables, cajas, ductos, conectores y otros materiales menores para la operatividad del sistema. En el Primer Piso | E81: 538 | F81: gl | G81: 1
B82: A.3.2.C5 | C82: IE2 | D82: Cables, cajas, ductos, conectores y otros materiales menores para la operatividad del sistema. En el Segundo Piso | E82: 538 | F82: gl | G82: 1
B83: A.3.2.C6 | C83: IE2 | D83: Cables, cajas, ductos, conectores y otros materiales menores para la operatividad del sistema. En el Tercer Piso | E83: 538 | F83: gl | G83: 1
B84: A.3.2.C7 | C84: IE2 | D84: Cables, cajas, ductos, conectores y otros materiales menores para la operatividad del sistema. En el Cuarto Piso | E84: 538 | F84: gl | G84: 1
B85: A.3.2.C8 | C85: IE2 | D85: Cables, cajas, ductos, conectores y otros materiales menores para la operatividad del sistema. En el Quinto Piso | E85: 538 | F85: gl | G85: 1
B86: A.3.2.C9 | D86: Cables, cajas, ductos, conectores y otros materiales menores para la operatividad del sistema. En el Sexto Piso | E86: 538 | F86: gl | G86: 1
B87: A.3.2.C10 | D87: Cables, cajas, ductos, conectores y otros materiales menores para la operatividad del sistema. En el Séptimo Piso | E87: 538 | F87: gl | G87: 1
B88: A.3.2.C11 | D88: Cables, cajas, ductos, conectores y otros materiales menores para la operatividad del sistema. En la Azotea | E88: 538 | F88: gl | G88: 1
B89: A.3.2.C12 | D89: Instalación y puesta en marcha del sistema | E89: 538 | F89: gl | G89: 1
B90: A.3.2.C13 | D90: Capacitación y adiestramiento del uso; manuales de operación y mantenimiento | E90: 538 | F90: gl | G90: 1
B92: Sub Total A.3 - INTEGRACION ELECTRONICA
B93: Son Guaraníes………………..

Sheet A.4 Seg. Electron.
B1: CORTE SUPREMA DE JUSTICIA - PROGRAMA DE LAS NACIONES UNIDAS PARA EL DESARROLLO
B2: "PROGRAMA DE INFRAESTRUCTURA EDILICIA CSJ - PNUD"
B3: =+Resumen!B3 -> SDP/14311/642/2021 - CONSTRUCCION DE LAS OBRAS CIVILES, INSTALACIONES Y MANTENIMIENTO POSTERIOR - AMPLIACION DEL PALACIO DE JUSTICIA DE SAN LORENZO
B5: A.4 PLANILLA DE CÓMPUTO MÉTRICO Y PRESUPUESTO - SEGURIDAD ELECTRÓNICA
B6: Ítem | C6: Cód. | D6: Descripción de Rubros | E6: OG | F6: Un | G6: Cant. | H6: Precio Unit. | I6: Precio Total
C7: E.T. | H7: Gs. Iva Incluido | I7: Gs. Iva Incluido
B8: 1. EQUIPOS
B9: A - SISTEMA DE DETECCIÓN ELECTRÓNCIA DE INCENDIOS
B10: A.4.1.A1 | C10: IE3 | D10: Central de alarmas específicamente para incendios; direccionable; capacidad 2000 puntos direccionables. Con lazo de expansión. Incluye teclado alfanumérico de control; con pantalla de cristal liquido. Con capacidad para desplazar mensajes acerca del estado del sistema. Formato de modulo para montaje en Rack. La central deberá contar con conexión a algún protocolo de comunicación abierto, KNX serial o IP, BACnet IP o Modbus TCP/IP, para integrarse al BMS, o mediante la provisión de un gateway a alguno de los protocolos citados. | E10: 538 | F10: un | G10: 1
B11: A.4.1.A2 | C11: IE3 | D11: Batería sellada de GEL 7,5 AH de bajo mantenimiento. Sin vapores tóxicos para la central de alarmas. La cantidad necesaria para el correcto funcionamiento del sistema | E11: 538 | F11: gl | G11: 1
B12: A.4.1.A3 | C12: IE3 | D12: Sirena de 30w para exterior con caja protectora antisabotaje | E12: 538 | F12: un | G12: 2
B13: A.4.1.A4 | C13: IE3 | D13: Sirena de 20w para interior | E13: 538 | F13: un | G13: 1
B14: A.4.1.A5 | C14: IE3 | D14: Detector de humo y calor, direccionable. Detección fotoelectrónica de humo y sensor de variaciones bruscas de temperatura | E14: 538 | F14: un | G14: 804
B15: A.4.1.A6 | C15: IE3 | D15: Detector termovelocimétrico direccionable. Detección de variaciones bruscas de calor | E15: 538 | F15: un | G15: 86
B16: A.4.1.A7 | C16: IE3 | D16: Accionador manual de alarma de incendio, direccionable | E16: 538 | F16: un | G16: 89
B17: A.4.1.A8 | C17: IE3 | D17: Detector de movimiento de agua en cañerias de extincion de incendios. | E17: 538 | F17: un | G17: 2
B18: A.4.1.A9 | C18: IE3 | D18: Alarma audio visual específica para incendios. Sistema interior con luz estroboscópica integrada | E18: 538 | F18: un | G18: 89
B19: A.4.1.A10 | C19: IE3 | D19: Carteles lumínicos LED de salida de emergencia para la evacuación. Iluminación autónoma | E19: 538 | F19: un | G19: 206
B20: A.4.1.A11 | C20: IE3 | D20: Equipos para iluminación LED de emergencia. Autónomos. | E20: 538 | F20: un | G20: 476
B21: B - CIRCUITO CERRADO DE VIDEO IP (CCTV)
B22: A.4.1.B1 | C22: IE3 | D22: Monitor Color de 21" de alta definición; pantalla LCD-LED; Formato 16:9 (rectangular), de alta resolución. Con control de encendido, contraste y brillo. | E22: 543 | F22: un | G22: 12
B23: A.4.1.B2 | C23: IE3 | D23: Monitor Color de 32" de alta definición; pantalla LCD-LED; Formato 16:9 (rectangular), de alta resolución. Con control de encendido, contraste y brillo. | E23: 543 | F23: un | G23: 4
B24: A.4.1.B3 | C24: IE3 | D24: Equipo de grabación digital para la administracion de hasta 128 canales, Sistema operativo Windows 10 Pro 64 Bit, Almacenamiento del sistema operativo en disco de estado solido de 500 GB, Almacenamientos de imagenes en 18 discos de 8 TB total capacidad 144 Tb., conexión a LAN e Internet. Incluir licencias para control remoto. Formato de grabacion h.264 o superior. Sistema de montaje en Rack. | E24: 538 | F24: un | G24: 2
B25: A.4.1.B4 | C25: IE3 | D25: Equipos de administracion del sistema de camaras en muebles de operario de sala de control. Salida para 4 monitores en simultaneo, 3 de manera continua y 1 para ampliacion de una de las camaras | E25: 541 | F25: un | G25: 4
B26: A.4.1.B5 | C26: IE3 | D26: Switch de 24 puertos PoE+, con tarjeta de Stack de 10/100/1000 y 2 puertos de fibra óptica | E26: 543 | F26: un | G26: 11
B27: A.4.1.B6 | C27: IE3 | D27: Switch de 24 puertos de fibra óptica | E27: 543 | F27: un | G27: 1
B28: A.4.1.B7 | C28: IE3 | D28: Fuente ininterrumpida de energía (UPS) de 3000 VA para equipo de grabacion digital (2), switches (10) y Adm. Y monitores (4), duración mínima 2 (dos) horas | E28: 543 | F28: un | G28: 16
B29: A.4.1.B8 | C29: IE3 | D29: Cámara IP PoE+ - móvil PTZ para exterior color, resolucion maxima 1920x1080. Sensibilidad a la Luz Color (33ms) 0,20 lux, (250ms) 0,025 lux, Monocromatico (33ms) 0,06 lux, (250ms) 0,008 lux; lente de autoiris de 4,7mm (gran angular) - 94 mm (teleobjetivo), zoom optico 30X / Digital 12X; Sensor CMOS de 9mm. Relacion de Aspecto 16:9. Compresion de Video H.264, MJPEG, MPEG4. Movimiento PAN (rotación continua), movimiento manual con Joystick y TILT (< 90°) Incluye gabinete para exteriores, Domo inferior ahumado, grado de proteccion IP67. Ventilador desempañador incorporado. Soporte alto en caño galvanizado esmaltado de 2 " de diametro | E29: 538 | F29: un | G29: 1
B30: A.4.1.B9 | C30: IE3 | D30: Cámara IP PoE+ color. Dispositivo de Imagen 3 Mpx, Sensor CMOS de 8,0mm (1/3,2 pulg.) Resolucion maxima de 1920x1080 (2,1 Mpx); Iluminacion minima f/1.2 Color (33ms) 0.30lux, (200ms) 0.02 lux, Monocromatico (33ms) 0.10 lux, (200ms) 0.01 lux; Lente Varifocal de 13M 2,8-12. Relacion de aspecto 16:9. Compresion de Video H.264, MJPEG, MPEG4. Ducto flexible de acero inoxidable para cables. Soporte ajustable en 360° | E30: 538 | F30: un | G30: 185
B31: A.4.1.B10 | C31: IE3 | D31: Cámara IP PoE+ Domo color. Dispositivo de Imagen 2 Mpx, Sensor 1/2,5" CMOS. Resolucion maxima de 1920x1080; Iluminacion minima f/1.4 Color 0.02lux, f/1.4 Monocromatico 0.01 lux; Lente Varifocal de 3,3-10. Relacion de aspecto 16:9. Compresion de Video H.264, MJPEG, MPEG4. Para ascensores | E31: 538 | F31: un | G31: 8
B32: A.4.1.B11 | C32: IE3 | D32: Gabinete para exteriores. Alojamiento para cámaras de CCTV para protegerlas de los rigores de la intemperie. Soporte en caño galvanizado esmaltado de 2 " | E32: 538 | F32: un | G32: 21
B33: A.4.1.B12 | C33: IE3 | D33: Rack abierto de 2 parantes 49u para montaje de equipos de CCTV | E33: 538 | F33: un | G33: 5
B34: C - GRABACION EN CAMARA GESSEL - SISTEMA DE VIDEO Y GRABACION
B35: A.4.1.C1 | C35: IE3 | D35: Cámaras fijas color de alta resolución (690 líneas de TV) , tipo domo | E35: 538 | F35: un | G35: 3
B36: A.4.1.C2 | C36: IE3 | D36: Cámara color móvil, con movimientos pan/tilt y lente zoom de 20 X. | E36: 538 | F36: un | G36: 1
B37: A.4.1.C3 | C37: IE3 | D37: Equipo grabador digital de video con entrada para 4 canales de video y audio; CON salidas para audio y video. Función looping. Disco duro 1,5 TB . Control PTZ a través del mouse. | E37: 538 | F37: un | G37: 1
B38: A.4.1.C4 | C38: IE3 | D38: Controlador de cámaras móviles pan/tilt y de lentes zoom, tipo Joystick | E38: 538 | F38: un | G38: 1
B39: A.4.1.C5 | C39: IE3 | D39: Monitor de visualización, 19", color , LCD-LED. Formato 4:3 (cuadrado) | E39: 543 | F39: un | G39: 1
B40: A.4.1.C6 | C40: IE3 | D40: U.P.S. capacidad 2000 VA, para respaldo de cámaras. Monitores, grabador digital y todo el sisteam de audio | E40: 543 | F40: un | G40: 2
B41: A.4.1.C7 | C41: IE3 | D41: Grabador externo de DVD, con entrada de video y audio. | E41: 538 | F41: un | G41: 1
B42: 2. MATERIALES, MONTAJE Y PUESTA EN MARCHA
B43: A - SISTEMA DE DETECCIÓN ELECTRÓNCIA DE INCENDIOS
B44: A.4.2.A1 | C44: IE3 | D44: Cables, cajas, ductos, conectores y otros materiales menores para la operatividad del sistema. En el Subsuelo 2 | E44: 538 | F44: gl | G44: 1
B45: A.4.2.A2 | C45: IE3 | D45: Cables, cajas, ductos, conectores y otros materiales menores para la operatividad del sistema. En el Subsuelo 1 | E45: 538 | F45: gl | G45: 1
B46: A.4.2.A3 | C46: IE3 | D46: Cables, cajas, ductos, conectores y otros materiales menores para la operatividad del sistema. En Planta Baja | E46: 538 | F46: gl | G46: 1
B47: A.4.2.A4 | C47: IE3 | D47: Cables, cajas, ductos, conectores y otros materiales menores para la operatividad del sistema. En el Primer Piso | E47: 538 | F47: gl | G47: 1
B48: A.4.2.A5 | C48: IE3 | D48: Cables, cajas, ductos, conectores y otros materiales menores para la operatividad del sistema. En el Segundo Piso | E48: 538 | F48: gl | G48: 1
B49: A.4.2.A6 | C49: IE3 | D49: Cables, cajas, ductos, conectores y otros materiales menores para la operatividad del sistema. En el Tercer Piso | E49: 538 | F49: gl | G49: 1
B50: A.4.2.A7 | C50: IE3 | D50: Cables, cajas, ductos, conectores y otros materiales menores para la operatividad del sistema. En el Cuarto Piso | E50: 538 | F50: gl | G50: 1
B51: A.4.2.A8 | C51: IE3 | D51: Cables, cajas, ductos, conectores y otros materiales menores para la operatividad del sistema. En el Quinto Piso | E51: 538 | F51: gl | G51: 1
B52: A.4.2.A9 | C52: IE3 | D52: Cables, cajas, ductos, conectores y otros materiales menores para la operatividad del sistema. En el Sexto Piso | E52: 538 | F52: gl | G52: 1
B53: A.4.2.A10 | C53: IE3 | D53: Cables, cajas, ductos, conectores y otros materiales menores para la operatividad del sistema. En el Séptimo Piso | E53: 538 | F53: gl | G53: 1
B54: A.4.2.A11 | C54: IE3 | D54: Cables, cajas, ductos, conectores y otros materiales menores para la operatividad del sistema. En la Azotea | E54: 538 | F54: gl | G54: 1
B55: A.4.2.A12 | C55: IE3 | D55: Instalación y puesta en marcha del sistema | E55: 538 | F55: gl | G55: 1
B56: A.4.2.A13 | C56: IE3 | D56: Asistencia técnica al integrador electrónico para la inclusión de los controladores de ascensor al BMS del Edificio | E56: 538 | F56: gl | G56: 1
B57: A.4.2.A14 | C57: IE3 | D57: Capacitación y adiestramiento en el uso; manuales de operación y mantenimiento del sistema | E57: 538 | F57: gl | G57: 1
B58: B - CIRCUITO CERRADO DE VIDEO IP (CCTV)
B59: A.4.2.B1 | C59: IE3 | D59: Instalacion de ductos y cables para conexión de audio, desde grabador digital a equipos de sonido de la Sala de Juicio Oral. | E59: 538 | F59: un | G59: 3
B60: A.4.2.B2 | C60: IE3 | D60: Cables CAT.6A, cajas, ductos, conectores y otros materiales menores para la operatividad del sistema. En el Subsuelo 2 | E60: 538 | F60: gl | G60: 1
B61: A.4.2.B3 | C61: IE3 | D61: Cables CAT.6A, cajas, ductos, conectores y otros materiales menores para la operatividad del sistema. En el Subsuelo 1 | E61: 538 | F61: gl | G61: 1
B62: A.4.2.B4 | C62: IE3 | D62: Cables CAT.6A, cajas, ductos, conectores y otros materiales menores para la operatividad del sistema. En Planta Baja | E62: 538 | F62: gl | G62: 1
B63: A.4.2.B5 | C63: IE3 | D63: Cables CAT.6A, cajas, ductos, conectores y otros materiales menores para la operatividad del sistema. En el Primer Piso | E63: 538 | F63: gl | G63: 1
B64: A.4.2.B6 | C64: IE3 | D64: Cables CAT.6A, cajas, ductos, conectores y otros materiales menores para la operatividad del sistema. En el Segundo Piso | E64: 538 | F64: gl | G64: 1
B65: A.4.2.B7 | C65: IE3 | D65: Cables CAT.6A, cajas, ductos, conectores y otros materiales menores para la operatividad del sistema. En el Tercer Piso | E65: 538 | F65: gl | G65: 1
B66: A.4.2.B8 | C66: IE3 | D66: Cables CAT.6A, cajas, ductos, conectores y otros materiales menores para la operatividad del sistema. En el Cuarto Piso | E66: 538 | F66: gl | G66: 1
B67: A.4.2.B9 | C67: IE3 | D67: Cables CAT.6A, cajas, ductos, conectores y otros materiales menores para la operatividad del sistema. En el Quinto Piso | E67: 538 | F67: gl | G67: 1
B68: A.4.2.B10 | C68: IE3 | D68: Cables CAT.6A, cajas, ductos, conectores y otros materiales menores para la operatividad del sistema. En el Sexto Piso | E68: 538 | F68: gl | G68: 1
B69: A.4.2.B11 | C69: IE3 | D69: Cables CAT.6A, cajas, ductos, conectores y otros materiales menores para la operatividad del sistema. En el Séptimo Piso | E69: 538 | F69: gl | G69: 1
B70: A.4.2.B12 | C70: IE3 | D70: Cables CAT.6A, cajas, ductos, conectores y otros materiales menores para la operatividad del sistema. En la Azotea | E70: 538 | F70: gl | G70: 1
B71: A.4.2.B13 | C71: IE3 | D71: Cableado de fibra óptica redundante, DIO rackeable, patch cords de fibra, segpun planos | E71: 538 | F71: gl | G71: 1
B72: A.4.2.B14 | C72: IE3 | D72: Instalación y puesta en marcha del sistema | E72: 538 | F72: gl | G72: 1
B73: A.4.2.B15 | C73: IE3 | D73: Asistencia técnica al integrador electrónico para la inclusión de los controladores de ascensor al BMS del Edificio | E73: 538 | F73: gl | G73: 1
B74: A.4.2.B16 | C74: IE3 | D74: Capacitacion y adiestramiento del uso; manuales de operación y mantenimiento | E74: 538 | F74: gl | G74: 1
B75: C - GRABACION EN CAMARA GESSEL - SISTEMA DE VIDEO Y GRABACION
B76: A.4.2.C1 | C76: IE3 | D76: Materiales de instalación: ductos, cables, conectores, fuentes de energía, accesorios. | E76: 538 | F76: gl | G76: 1
B77: A.4.2.C2 | C77: IE3 | D77: Mano de Obra: ducteado, cableado, conexiones, instalación de equipos, programación, puesta en marcha, capacitación. | E77: 538 | F77: gl | G77: 1
B78: A.4.2.C3 | C78: IE3 | D78: Instalación y puesta en marcha del sistema | E78: 538 | F78: gl | G78: 1
B79: A.4.2.C4 | C79: IE3 | D79: Capacitación y adiestramiento; manuales de operación y mantenimiento | E79: 538 | F79: gl | G79: 1
B80: Sub Total A.4 - Sistema de Seguridad Electronica
B81: Son Guaraníes………………..

Sheet A.5 Com. Oral
B1: CORTE SUPREMA DE JUSTICIA - PROGRAMA DE LAS NACIONES UNIDAS PARA EL DESARROLLO
B2: "PROGRAMA DE INFRAESTRUCTURA EDILICIA CSJ - PNUD"
B3: =+Resumen!B3 -> SDP/14311/642/2021 - CONSTRUCCION DE LAS OBRAS CIVILES, INSTALACIONES Y MANTENIMIENTO POSTERIOR - AMPLIACION DEL PALACIO DE JUSTICIA DE SAN LORENZO
B5: A.5 PLANILLA DE CÓMPUTO MÉTRICO Y PRESUPUESTO - COMUNICACIÓN ORAL
B6: Ítem | C6: Cód. | D6: Descripción de Rubros | E6: OG | F6: Un | G6: Cant. | H6: Precio Unit. | I6: Precio Total
C7: E.T. | H7: Gs. Iva Incluido | I7: Gs. Iva Incluido
B8: 1. EQUIPOS
B9: A - COMUNICACIÓN ORAL Y MÚSICA FUNCIONAL
B10: A.5.1.A1 | C10: IE4 | D10: Equipo amplificador de audio, tipo profesional capacidad de salida de 500W. Formato para montaje en Rack. | E10: 536 | F10: un | G10: 6
B11: A.5.1.A2 | C11: IE4 | D11: Equipo de audio para conexión a red de datos, funciones de sintonizador de Radio FM y AM, Reproductor de musicas en formato MP3 desde el servidor del sistema de integracion electronica, funcion de entrada de microfono para comunicaciones orales desde la sala de control, software para instalaciones en PC de la integracion electronica | E11: 536 | F11: un | G11: 1
B12: A.5.1.A3 | C12: IE4 | D12: Parlantes para interiores de 8"; de 8 ohm de impedancia; embutidos en cielorraso; color blanco | E12: 536 | F12: un | G12: 219
B13: A.5.1.A4 | C13: IE4 | D13: Parlantes para interiores de 8"; de 8 ohm de impedancia; adosados al muro o al cielorraso; color blanco | E13: 536 | F13: un | G13: 31
B14: A.5.1.A5 | C14: IE4 | D14: Microfono profesional con pedestal de mesa para Sala de Control | E14: 536 | F14: un | G14: 1
B15: A.5.1.A6 | C15: IE4 | D15: Intercomunicadores; una terminal de embutir en muro (carcasa de protección para la intemperie) y otra handset con luz LED indicadora de llamada. Sala de Reconocimiento y Sala de control. | E15: 536 | F15: un | G15: 2
B16: A.5.1.A7 | C16: IE4 | D16: Reóstato para control de volumen, en muros | E16: 536 | F16: un | G16: 34
B17: B - SONORIZACIÓN DE LA SALA DE JUICIOS ORALES
B18: A.5.1.B1 | C18: IE4 | D18: Equipo amplificador de audio, tipo profesional capacidad de 120W salas de Juicios Orales. | E18: 536 | F18: un | G18: 3
B19: A.5.1.B2 | C19: IE4 | D19: Equipo mezclador de audio, tipo profesional 8 canales de entrada y salida. Salas de Juicios Orales | E19: 536 | F19: un | G19: 3
B20: A.5.1.B3 | C20: IE4 | D20: Parlantes de 8", de 16 ohm de impedancia; con soporte aplicado a muros | E20: 536 | F20: un | G20: 14
B21: A.5.1.B4 | C21: IE4 | D21: Micrófono profesional inalámbrico. | E21: 536 | F21: un | G21: 3
B22: A.5.1.B5 | C22: IE4 | D22: Micrófono profesional; cápsula condensadora; con pedestal de mesa y cuello flexible | E22: 536 | F22: un | G22: 15
B23: A.5.1.B6 | C23: IE4 | D23: Pedestal metálico alto para micrófono; regulable, tipo profesional | E23: 536 | F23: un | G23: 3
B24: D - SONORIZACIÓN Y GRABACION EN CAMARA GESSEL - AUDIO
B25: A.5.1.D1 | C25: IE4 | D25: Mezclador de audio con capacidad minima de 8 canales | E25: 536 | F25: un | G25: 1
B26: A.5.1.D2 | C26: IE4 | D26: Amplificador de audio, potencia 60 Watts | E26: 536 | F26: un | G26: 1
B27: A.5.1.D3 | C27: IE4 | D27: Micrófonos de ambiente. Embutidos en la parte superior del tabique de yeso. | E27: 536 | F27: un | G27: 2
B28: A.5.1.D4 | C28: IE4 | D28: Micrófono profesional inalámbrico para consultas | E28: 536 | F28: un | G28: 1
B29: A.5.1.D5 | C29: IE4 | D29: Transmisor inalambrico con microfono solapero y audifono discreto, con control de volumen en transmisor. | E29: 536 | F29: un | G29: 1
B30: A.5.1.D6 | C30: IE4 | D30: Parlantes de pared, de potencia 60 Watts | E30: 536 | F30: un | G30: 2
B31: 2. MATERIALES, MONTAJE Y PUESTA EN MARCHA
B32: A - COMUNICACIÓN ORAL Y MÚSICA FUNCIONAL
B33: A.5.2.A1 | C33: IE4 | D33: Cables, cajas, ductos, conectores y otros materiales menores para la operatividad del sistema. En el Subsuelo 2 | E33: 538 | F33: gl | G33: 1
B34: A.5.2.A2 | C34: IE4 | D34: Cables, cajas, ductos, conectores y otros materiales menores para la operatividad del sistema. En el Subsuelo 1 | E34: 538 | F34: gl | G34: 1
B35: A.5.2.A3 | C35: IE4 | D35: Cables, cajas, ductos, conectores y otros materiales menores para la operatividad del sistema. En Planta Baja | E35: 538 | F35: gl | G35: 1
B36: A.5.2.A4 | C36: IE4 | D36: Cables, cajas, ductos, conectores y otros materiales menores para la operatividad del sistema. En el Primer Piso | E36: 538 | F36: gl | G36: 1
B37: A.5.2.A5 | C37: IE4 | D37: Cables, cajas, ductos, conectores y otros materiales menores para la operatividad del sistema. En el Segundo Piso | E37: 538 | F37: gl | G37: 1
B38: A.5.2.A6 | C38: IE4 | D38: Cables, cajas, ductos, conectores y otros materiales menores para la operatividad del sistema. En el Tercer Piso | E38: 538 | F38: gl | G38: 1
B39: A.5.2.A7 | C39: IE4 | D39: Cables, cajas, ductos, conectores y otros materiales menores para la operatividad del sistema. En el Cuarto Piso | E39: 538 | F39: gl | G39: 1
B40: A.5.2.A8 | C40: IE4 | D40: Cables, cajas, ductos, conectores y otros materiales menores para la operatividad del sistema. En el Quinto Piso | E40: 538 | F40: gl | G40: 1
B41: A.5.2.A9 | D41: Cables, cajas, ductos, conectores y otros materiales menores para la operatividad del sistema. En el Sexto Piso | E41: 538 | F41: gl | G41: 1
B42: A.5.2.A10 | D42: Cables, cajas, ductos, conectores y otros materiales menores para la operatividad del sistema. En el Séptimo Piso | E42: 538 | F42: gl | G42: 1
B43: A.5.2.A11 | D43: Cables, cajas, ductos, conectores y otros materiales menores para la operatividad del sistema. En la Azotea | E43: 538 | F43: gl | G43: 1
B44: A.5.2.A12 | D44: Instalación y puesta en marcha del sistema | E44: 538 | F44: gl | G44: 1
B45: A.5.2.A13 | D45: Capacitación y adiestramiento; manuales de operación y mantenimiento | E45: 538 | F45: gl | G45: 1
B46: B - SONORIZACIÓN DE LA SALA DE JUICIOS ORALES
B47: A.5.2.B1 | C47: IE4 | D47: Instalación de red de ductos, cables y conexiones; puesta en marcha del sistema en las Salas de Juicios Orales | E47: 538 | F47: un | G47: 3
B48: A.5.2.B2 | C48: IE4 | D48: Interconexion entre de equipo amplificador de audio de las salas de Juicios Orales al sistema grabacion digital del circuito cerrado de Video en la sala de control. | E48: 538 | F48: un | G48: 3
B49: A.5.2.B3 | C49: IE4 | D49: Tomas para microfonos | E49: 538 | F49: un | G49: 21
B50: A.5.2.B4 | C50: IE4 | D50: Capacitación y adiestramiento; manuales de operación y mantenimiento | E50: 538 | F50: gl | G50: 1
B51: C - SONORIZACIÓN Y GRABACION EN CAMARA GESSEL - AUDIO
B52: A.5.2.C1 | C52: IE4 | D52: Materiales de instalación: ductos, cables, conectores, fuentes de energía, accesorios. | E52: 538 | F52: gl | G52: 1
B53: A.5.2.C2 | C53: IE4 | D53: Instalación y puesta en marcha del sistema | E53: 538 | F53: gl | G53: 1
B54: A.5.2.C3 | C54: IE4 | D54: Capacitación y adiestramiento; manuales de operación y mantenimiento | E54: 538 | F54: gl | G54: 1
B56: Sub Total A.5 - COMUNICACIÓN ORAL Y MUSICA FUNCIONAL
B57: Son Guaraníes………………..

Sheet A.6 Telefonia
B1: CORTE SUPREMA DE JUSTICIA - PROGRAMA DE LAS NACIONES UNIDAS PARA EL DESARROLLO
B2: "PROGRAMA DE INFRAESTRUCTURA EDILICIA CSJ - PNUD"
B3: =+Resumen!B3 -> SDP/14311/642/2021 - CONSTRUCCION DE LAS OBRAS CIVILES, INSTALACIONES Y MANTENIMIENTO POSTERIOR - AMPLIACION DEL PALACIO DE JUSTICIA DE SAN LORENZO
B5: A.6 PLANILLA DE CÓMPUTO MÉTRICO Y PRESUPUESTO - RED DE TELEFONÍA
B6: Ítem | C6: Cód. | D6: Descripción de Rubros | E6: OG | F6: Un | G6: Cant. | H6: Precio Unit. | I6: Precio Total
C7: E.T. | H7: Gs. Iva Incluido | I7: Gs. Iva Incluido
B8: 1. EQUIPOS
B9: A.6.1.1 | C9: IE5 | D9: Central Telefónica PBX digital modulable (sin bloqueo), con sistema de tarjetas, compatible IP, correo de voz, que incluye 1 gabinete principal y secundarios de capacidad ampliable; 1 Software de funciones correspondientes; 36 líneas externas troncales; 2 Puertos E1 ISDR PRI. 400 líneas internas (20%digital, 80% analogica); tres (3) puertos SD, RS-232, para conexión de computadora impresora y modens | E9: 536 | F9: gl | G9: 1
B10: A.6.1.2 | C10: IE5 | D10: Banco de baterías | E10: 536 | F10: gl | G10: 1
B11: A.6.1.3 | C11: IE5 | D11: Computadora personal, procesador de ocho nucleos ultima generacion y software original para operación y diagnóstico del sistema; monitor color LCD-LED de 21", formato 16:9; sistema operativo Windows 10 o superior. | E11: 543 | F11: un | G11: 1
B12: A.6.1.4 | C12: IE5 | D12: Impresora laser tinta negra tipo HP | E12: 543 | F12: un | G12: 1
B13: A.6.1.5 | C13: IE5 | D13: Fuente ininterrumpida de energía (UPS) para PC, de 2.000VA | E13: 543 | F13: un | G13: 1
B14: A.6.1.6 | C14: IE5 | D14: Provisión y montaje de Consola de Operadora y accesorios. Auricular con micrófono. Pantalla de 4 líneas y 40 caracteres. 60 Teclas de identificación de llamadas en espera. Diez (10) teclas programables con 20 funciones adicionales para manejo de llamadas, búsqueda de personas, repetición, etc. | E14: 536 | F14: un | G14: 1
B15: A.6.1.7 | C15: IE5 | D15: Modems de acceso. Enlace para troncales E1 Fibra optica Monomodo. Ver Especificaciones Tecnicas. | E15: 536 | F15: un | G15: 3
B16: A.6.1.8 | C16: IE5 | D16: Provisión y montaje de Aparatos Telefónicos Digitales. Con pantalla de cristal líquido, full manos libres, tecla indicadora de mensaje en espera, y minimo 10 teclas programables con indicador visual de mínimo 10 internos ocupados libre/ocupado. | E16: 536 | F16: un | G16: 70
B17: A.6.1.9 | C17: IE5 | D17: Provisión y Montaje de Aparatos Telefónicos Analógicos. Pantalla de cristal líquido. Con luz de mensaje en espera y teclas auxiliares flash, redial y retención, 10 teclas de discado directo. | E17: 536 | F17: un | G17: 250
B18: A.6.1.10 | C18: IE5 | D18: Provisión y Montaje de Intercomunicadores. Boton pulsador de llamada, microfono y parlante | E18: 536 | F18: un | G18: 7
B19: A.6.1.10 | C19: IE5 | D19: Provisión y Montaje de Intercomunicadores de calle. Boton pulsador de llamada, microfono y parlante | E19: 536 | F19: un | G19: 3
B20: A.6.1.11 | C20: IE5 | D20: Pedestal metálico para intercomunicador en caño de hierro galvanizado esmaltado de 3" | E20: 536 | F20: un | G20: 3
B21: A.6.1.12 | C21: IE5 | D21: Equipos y Licencias necesarias para la interconexion entre la nueva central telefonica y la central de asuncion. Conexión via VPN del poder judicial | E21: 536 | F21: gl | G21: 1
B22: 2. MATERIALES, MONTAJE Y PUESTA EN MARCHA
B23: A.6.2.1 | C23: IE5 | D23: Conductor de 100 pares telefónicos de gabinete tecnico Subsuelo 2 a sala de control | E23: 522 | F23: gl | G23: 1
B24: A.6.2.2 | C24: IE5 | D24: Conductor de 100 pares telefónicos de gabinete tecnico Subsuelo 1 a sala de control | E24: 522 | F24: gl | G24: 1
B25: A.6.2.3 | C25: IE5 | D25: Conductor de 100 pares telefónicos de gabinete tecnico Planta Baja a sala de control | E25: 522 | F25: gl | G25: 1
B26: A.6.2.4 | C26: IE5 | D26: Conductor de 100 pares telefónicos de gabinete tecnico Primer Piso a sala de control | E26: 522 | F26: gl | G26: 1
B27: A.6.2.5 | C27: IE5 | D27: Conductor de 100 pares telefónicos de gabinete tecnico Segundo Piso a sala de control | E27: 522 | F27: gl | G27: 1
B28: A.6.2.6 | C28: IE5 | D28: Conductor de 100 pares telefónicos de gabinete tecnico Tercer Piso a sala de control | E28: 522 | F28: gl | G28: 1
B29: A.6.2.7 | C29: IE5 | D29: Conductor de 100 pares telefónicos de gabinete tecnico Cuarto Piso a sala de control | E29: 522 | F29: gl | G29: 1
B30: A.6.2.8 | C30: IE5 | D30: Conductor de 100 pares telefónicos de gabinete tecnico Quinto Piso a sala de control | E30: 522 | F30: gl | G30: 1
B31: A.6.2.9 | C31: IE5 | D31: Conductor de 100 pares telefónicos de gabinete tecnico Sexto Piso a sala de control | E31: 522 | F31: gl | G31: 1
B32: A.6.2.10 | C32: IE5 | D32: Conductor de 100 pares telefónicos de gabinete tecnico Séptimo Piso a sala de control | E32: 522 | F32: gl | G32: 1
B33: A.6.2.11 | C33: IE5 | D33: Conductor de 50 pares telefónicos de gabinete tecnico Azotea a sala de control | E33: 522 | F33: gl | G33: 1
B34: A.6.2.12 | C34: IE5 | D34: Conductor de 4 hilos - 2 pares telefónicos (Subsuelo 2) de toma a tablero con regletas secundarias de distribucion en gabinetes tecnicos de señales debiles. | E34: 522 | F34: gl | G34: 1
B35: A.6.2.13 | C35: IE5 | D35: Conductor de 4 hilos - 2 pares telefónicos (Subsuelo 1) de toma a tablero con regletas secundarias de distribucion en gabinetes tecnicos de señales debiles. | E35: 522 | F35: gl | G35: 1
B36: A.6.2.14 | C36: IE5 | D36: Conductor de 4 hilos - 2 pares telefónicos (Planta Baja) de toma a tablero con regletas secundarias de distribucion en gabinetes tecnicos de señales debiles. | E36: 522 | F36: gl | G36: 1
B37: A.6.2.15 | C37: IE5 | D37: Conductor de 4 hilos - 2 pares telefónicos (Primer Piso) de toma a tablero con regletas secundarias de distribucion en gabinetes tecnicos de señales debiles. | E37: 522 | F37: gl | G37: 1
B38: A.6.2.16 | C38: IE5 | D38: Conductor de 4 hilos - 2 pares telefónicos (Segundo Piso) de toma a tablero con regletas secundarias de distribucion en gabinetes tecnicos de señales debiles. | E38: 522 | F38: gl | G38: 1
B39: A.6.2.17 | C39: IE5 | D39: Conductor de 4 hilos - 2 pares telefónicos (Tercer Piso) de toma a tablero con regletas secundarias de distribucion en gabinetes tecnicos de señales debiles. | E39: 522 | F39: gl | G39: 1
B40: A.6.2.18 | C40: IE5 | D40: Conductor de 4 hilos - 2 pares telefónicos (Cuarto Piso) de toma a tablero con regletas secundarias de distribucion en gabinetes tecnicos de señales debiles. | E40: 522 | F40: gl | G40: 1
B41: A.6.2.19 | C41: IE5 | D41: Conductor de 4 hilos - 2 pares telefónicos (Quinto Piso) de toma a tablero con regletas secundarias de distribucion en gabinetes tecnicos de señales debiles. | E41: 522 | F41: gl | G41: 1
B42: A.6.2.20 | C42: IE5 | D42: Conductor de 4 hilos - 2 pares telefónicos (Sexto Piso) de toma a tablero con regletas secundarias de distribucion en gabinetes tecnicos de señales debiles. | E42: 522 | F42: gl | G42: 1
B43: A.6.2.21 | C43: IE5 | D43: Conductor de 4 hilos - 2 pares telefónicos (Séptimo Piso) de toma a tablero con regletas secundarias de distribucion en gabinetes tecnicos de señales debiles. | E43: 522 | F43: gl | G43: 1
B44: A.6.2.22 | C44: IE5 | D44: Conductor de 4 hilos - 2 pares telefónicos (Azotea) de toma a tablero con regletas secundarias de distribucion en gabinetes tecnicos de señales debiles. | E44: 522 | F44: gl | G44: 1
B45: A.6.2.23 | C45: IE5 | D45: Provisión y montaje de Tablero General de Distribución: caja y puertas metálicas; fondo de madera; doble regletas tipo Krone; toma de tierra y accesorios | E45: 522 | F45: un | G45: 1
B46: A.6.2.24 | C46: IE5 | D46: Provisión y montaje de Tablero Secundario de Distribución, por Piso: caja y puertas metálicas; regletas tipo Krone; toma de tierra y accesorios | E46: 522 | F46: un | G46: 14
B47: A.6.2.25 | C47: IE5 | D47: Sistema de protección primaria | E47: 522 | F47: un | G47: 1
B48: A.6.2.26 | C48: IE5 | D48: Sistema de protección secundaria | E48: 522 | F48: un | G48: 14
B49: A.6.2.27 | C49: IE5 | D49: Provision y montaje de tomas telefónicas RJ-11 Subsuelo 2 | E49: 522 | F49: un | G49: 6
B50: A.6.2.28 | C50: IE5 | D50: Provision y montaje de tomas telefónicas RJ-11 Subsuelo 1 | E50: 522 | F50: un | G50: 28
B51: A.6.2.29 | C51: IE5 | D51: Provision y montaje de tomas telefónicas RJ-11 Planta Baja | E51: 522 | F51: un | G51: 88
B52: A.6.2.30 | C52: IE5 | D52: Provision y montaje de tomas telefónicas RJ-11 1er. Piso | E52: 522 | F52: un | G52: 89
B53: A.6.2.31 | C53: IE5 | D53: Provision y montaje de tomas telefónicas RJ-11 2do. Piso | E53: 522 | F53: un | G53: 89
B54: A.6.2.32 | C54: IE5 | D54: Provision y montaje de tomas telefónicas RJ-11 3er. Piso | E54: 522 | F54: un | G54: 90
B55: A.6.2.33 | C55: IE5 | D55: Provision y montaje de tomas telefónicas RJ-11 4to. Piso | E55: 522 | F55: un | G55: 33
B56: A.6.2.34 | C56: IE5 | D56: Provision y montaje de tomas telefónicas RJ-11 5to. Piso | E56: 522 | F56: un | G56: 31
B57: A.6.2.35 | C57: IE5 | D57: Provision y montaje de tomas telefónicas RJ-11 6to. Piso | E57: 522 | F57: un | G57: 30
B58: A.6.2.36 | C58: IE5 | D58: Provision y montaje de tomas telefónicas RJ-11 7mo. Piso | E58: 522 | F58: un | G58: 30
B59: A.6.2.37 | C59: IE5 | D59: Provision y montaje de tomas telefónicas RJ-11 Azotea | E59: 522 | F59: un | G59: 5
B60: A.6.2.38 | C60: IE5 | D60: Accesorios de montaje y materiales menores | E60: 522 | F60: gl | G60: 1
B61: A.6.2.39 | C61: IE5 | D61: Montaje de la red de telefonía Subsuelo 2 | E61: 522 | F61: gl | G61: 1
B62: A.6.2.40 | C62: IE5 | D62: Montaje de la red de telefonía Subsuelo 1 | E62: 522 | F62: gl | G62: 1
B63: A.6.2.41 | C63: IE5 | D63: Montaje de la red de telefonía Planta Baja | E63: 522 | F63: gl | G63: 1
B64: A.6.2.42 | C64: IE5 | D64: Montaje de la red de telefonía 1er. Piso | E64: 522 | F64: gl | G64: 1
B65: A.6.2.43 | C65: IE5 | D65: Montaje de la red de telefonía 2do. Piso | E65: 522 | F65: gl | G65: 1
B66: A.6.2.44 | C66: IE5 | D66: Montaje de la red de telefonía 3er. Piso | E66: 522 | F66: gl | G66: 1
B67: A.6.2.45 | C67: IE5 | D67: Montaje de la red de telefonía 4to. Piso | E67: 522 | F67: gl | G67: 1
B68: A.6.2.46 | C68: IE5 | D68: Montaje de la red de telefonía 5to. Piso | E68: 522 | F68: gl | G68: 1
B69: A.6.2.47 | C69: IE5 | D69: Montaje de la red de telefonía 6to. Piso | E69: 522 | F69: gl | G69: 1
B70: A.6.2.48 | C70: IE5 | D70: Montaje de la red de telefonía 7mo. Piso | E70: 522 | F70: gl | G70: 1
B71: A.6.2.49 | C71: IE5 | D71: Montaje de la red de telefonía Azotea | E71: 522 | F71: gl | G71: 1
B72: A.6.2.50 | C72: IE5 | D72: Conexión de troncales | E72: 522 | F72: gl | G72: 1
B73: A.6.2.51 | C73: IE5 | D73: Sistemas de Acceso. Instalacion y puesta en marcha de modems de interconexión para troncales E1. Ver Especificaciones Tecnicas. | E73: 522 | F73: gl | G73: 1
B74: A.6.2.52 | C74: IE5 | D74: Programación general y puesta en funcionamiento del sistema | E74: 522 | F74: gl | G74: 1
B75: A.6.2.53 | C75: IE5 | D75: Verificación del sistema de puesta a tierra: mediciones y estudios | E75: 522 | F75: gl | G75: 1
B76: A.6.2.54 | C76: IE5 | D76: Capacitacion y adiestramiento del uso; manuales de operación y mantenimiento | E76: 522 | F76: gl | G76: 1
B78: Sub Total A.6 - RED DE TELEFONIA
B79: Son Guaraníes………………..

Sheet A.7 Datos
B1: CORTE SUPREMA DE JUSTICIA - PROGRAMA DE LAS NACIONES UNIDAS PARA EL DESARROLLO
B2: "PROGRAMA DE INFRAESTRUCTURA EDILICIA CSJ - PNUD"
B3: =+Resumen!B3 -> SDP/14311/642/2021 - CONSTRUCCION DE LAS OBRAS CIVILES, INSTALACIONES Y MANTENIMIENTO POSTERIOR - AMPLIACION DEL PALACIO DE JUSTICIA DE SAN LORENZO
B5: A.7 PLANILLA DE CÓMPUTO MÉTRICO Y PRESUPUESTO - RED DE DATOS
B6: Ítem | C6: Cód. | D6: Descripción de Rubros | E6: OG | F6: Un | G6: Cant. | H6: Precio Unit. | I6: Precio Total
C7: E.T. | H7: Gs. Iva Incluido | I7: Gs. Iva Incluido
B8: 1. EQUIPOS
B9: A.7.1.1 | C9: IE6 | D9: Switch Core o backbone con 24 puertos SFPs opticos 1000 BaseLX. | E9: 543 | F9: un | G9: 1
B10: A.7.1.2 | C10: IE6 | D10: Switch de 48 puertos, con tarjeta de Stack de 10/100/1000 y conexión con fibra óptica minimo 2 | E10: 543 | F10: un | G10: 18
B11: A.7.1.3 | C11: IE6 | D11: Switch de 24 puertos, con tarjeta de Stack de 10/100/1000 y conexión con fibra óptica minimo 2 | E11: 543 | F11: un | G11: 9
B12: A.7.1.4 | C12: IE6 | D12: Equipo de seguridad VPN con funciones de Firewall y Router | E12: 543 | F12: un | G12: 1
B13: A.7.1.5 | C13: IE6 | D13: Equipo de Acceso Inalambrico - Access Point | E13: 543 | F13: un | G13: 16
B14: A.7.1.6 | C14: IE7 | D14: Fuente ininterrumpida de energía (UPS) de 2.200VA para switch en pisos | E14: 543 | F14: un | G14: 15
B15: 2. MATERIALES, MONTAJE Y PUESTA EN MARCHA
B16: A.7.2.1 | C16: IE6 | D16: Provision y montaje de Racks para equipos, servidores y concentradores. Altura de 42U, profundidad 800mm., ancho 600mm., Deberá poseer una capacidad de carga estática de por lo menos 1000 Kg. con puertas frontales y traseras micro perforadas, en un porcentaje mínimo de 60%. Con barra de puesta a tierra y regleta de alimentacion electrica. | E16: 541 | F16: un | G16: 4
B17: A.7.2.2 | C17: IE6 | D17: Rack abierto con dos parantes de 42U para gabinetes tecnicos en pisos | E17: 541 | F17: un | G17: 14
B18: A.7.2.3 | C18: IE6 | D18: Patch Panel - 24 puertos - Cat. 6a | E18: 543 | F18: un | G18: 45
B19: A.7.2.4 | C19: IE6 | D19: Cable UTP - Cat. 6a | E19: 543 | F19: ml | G19: 45050
B20: A.7.2.5 | C20: IE6 | D20: Interconexion con fibra optica tipo monomodo redundante entre switches de piso y el core en sala de control. Mínimo 12 pelos | E20: 543 | F20: ml | G20: 1200
B21: A.7.2.6 | C21: IE6 | D21: DIO (distribuidor interno optico) de fibra en terminaciones. Rackeable. Ubicacion en la parte superior del Rack. | E21: 543 | F21: un | G21: 15
B22: A.7.2.7 | C22: IE6 | D22: Patch cord de fibra optica | E22: 543 | F22: un | G22: 82
B23: A.7.2.8 | C23: IE6 | D23: Tomas con insertos RJ45 Cat. 6a | E23: 543 | F23: un | G23: 874
B24: A.7.2.9 | C24: IE6 | D24: Tomas con insertos RJ45 para montaje en riel DIN, en salas técnicas Cat. 6a | E24: 543 | F24: un | G24: 27
B25: A.7.2.10 | C25: IE6 | D25: Patch cords - Cat. 6a | E25: 543 | F25: un | G25: 1123
B26: A.7.2.11 | C26: IE6 | D26: Line cords - Cat. 6a | E26: 543 | F26: un | G26: 901
B27: A.7.2.12 | C27: IE6 | D27: Materiales de sujeción | E27: 543 | F27: gl | G27: 1
B28: A.7.2.13 | C28: IE6 | D28: Materiales menores y accesorios | E28: 543 | F28: gl | G28: 1
B29: A.7.2.14 | C29: IE6 | D29: Asistencia técnica al integrador electrónico para la inclusión de la red del BMS del Edificio a la red de datos. | E29: 543 | F29: gl | G29: 1
B30: A.7.2.15 | C30: IE6 | D30: Mano de Obra de la instalación | E30: 543 | F30: gl | G30: 1
B32: Sub Total A.7 - RED DE DATOS
B33: Son Guaraníes………………..

Sheet A.8 Ascensores
B1: CORTE SUPREMA DE JUSTICIA - PROGRAMA DE LAS NACIONES UNIDAS PARA EL DESARROLLO
B2: "PROGRAMA DE INFRAESTRUCTURA EDILICIA CSJ - PNUD"
B3: =+Resumen!B3 -> SDP/14311/642/2021 - CONSTRUCCION DE LAS OBRAS CIVILES, INSTALACIONES Y MANTENIMIENTO POSTERIOR - AMPLIACION DEL PALACIO DE JUSTICIA DE SAN LORENZO
B5: A.8 PLANILLA DE CÓMPUTO MÉTRICO Y PRESUPUESTO - ASCENSORES
B6: Ítem | C6: Cód. | D6: Descripción de Rubros | E6: OG | F6: Un | G6: Cant. | H6: Precio Unit. | I6: Precio Total
C7: E.T. | H7: Gs. Iva Incluido | I7: Gs. Iva Incluido
B8: 1. EQUIPOS
B9: A - Ascensor para Funcionarios
B10: A.8.1.A1 | C10: IE7 | D10: Provisión de ascensor sin sala de maquinas para 600Kg / 8 personas, velocidad 60m/minuto, 11 paradas, 11 niveles (4m. por nivel). Componentes: motor; módulo de control; cabina; guías; cabos; contrapesos; puertas; marcos y umbrales; software de monitoreo; accesorios | E10: 522 | F10: un | G10: 2
B11: A.8.1.A2 | C11: IE7 | D11: Intercomunicador, entre cabina y sala de control | E11: 522 | F11: un | G11: 2
B12: A.8.1.A3 | C12: IE7 | D12: Sistema de proteccion electrica, supresor de sobretensiones transitorias y de armonicos para cerebro electronico, Tipo SineTamer. | E12: 522 | F12: un | G12: 2
B13: A.8.1.A4 | C13: IE7 | D13: Kit de repuestos | E13: 522 | F13: gl | G13: 1
B14: B - Ascensor para Publico
B15: A.8.2.B1 | C15: IE7 | D15: Provisión de ascensor sin sala de maquinas para 600Kg / 8 personas, velocidad 60m/minuto, 7 paradas, 8 niveles (4m. por nivel). Componentes: motor; módulo de control; cabina; guías; cabos; contrapesos; puertas; marcos y umbrales; software de monitoreo; accesorios | E15: 522 | F15: un | G15: 2
B16: A.8.2.B2 | C16: IE7 | D16: Intercomunicador, entre cabina y sala de control | E16: 522 | F16: un | G16: 2
B17: A.8.2.B3 | C17: IE7 | D17: Sistema de proteccion electrica, supresor de sobretensiones transitorias y de armonicos para cerebro electronico, Tipo SineTamer. | E17: 522 | F17: un | G17: 2
B18: A.8.2.B4 | C18: IE7 | D18: Kit de repuestos | E18: 522 | F18: gl | G18: 1
B19: C - Ascensor para Imputados
B20: A.8.2.C1 | C20: IE7 | D20: Provisión de ascensor sin sala de maquinas para 450Kg / 6 personas, velocidad 60m/minuto, 3 paradas, 3 niveles (4m. por nivel). Componentes: motor; módulo de control; cabina; guías; cabos; contrapesos; puertas; marcos y umbrales; software de monitoreo; accesorios. | E20: 522 | F20: un | G20: 1
B21: A.8.2.C2 | C21: IE7 | D21: Intercomunicador, entre cabina y sala de control | E21: 522 | F21: un | G21: 1
B22: A.8.2.C3 | C22: IE7 | D22: Sistema de proteccion electrica, supresor de sobretensiones transitorias y de armonicos para cerebro electronico, Tipo SineTamer. | E22: 522 | F22: un | G22: 1
B23: A.8.2.C4 | C23: IE7 | D23: Kit de repuestos | E23: 522 | F23: gl | G23: 1
B24: D - Ascensor para uso interno SUM, cafeteria - BLOQUE F
B25: A.8.2.D1 | C25: IE7 | D25: Provisión de ascensor sin sala de maquinas para 450Kg / 6 personas, velocidad 60m/minuto, 4 paradas, 4 niveles (4m. por nivel). Componentes: motor; módulo de control; cabina; guías; cabos; contrapesos; puertas; marcos y umbrales; software de monitoreo; accesorios | E25: 522 | F25: un | G25: 1
B26: A.8.2.D2 | C26: IE7 | D26: Intercomunicador, entre cabina y sala de control | E26: 522 | F26: un | G26: 1
B27: A.8.2.D3 | C27: IE7 | D27: Sistema de proteccion electrica, supresor de sobretensiones transitorias y de armonicos para cerebro electronico, Tipo SineTamer. | E27: 522 | F27: un | G27: 1
B28: A.8.2.D4 | C28: IE7 | D28: Kit de repuestos | E28: 522 | F28: gl | G28: 1
B29: E - Ascensor para Funcionarios - Edificio remodelado
B30: A.8.1.E1 | C30: IE7 | D30: Provisión de ascensor sin sala de maquinas para 600Kg / 8 personas, velocidad 60m/minuto, 4 paradas, 4 niveles (4m. por nivel). Componentes: motor; módulo de control; cabina; guías; cabos; contrapesos; puertas; marcos y umbrales; software de monitoreo; accesorios | E30: 522 | F30: un | G30: 1
B31: A.8.1.E2 | C31: IE7 | D31: Intercomunicador, entre cabina y sala de control | E31: 522 | F31: un | G31: 1
B32: A.8.1.E3 | C32: IE7 | D32: Sistema de proteccion electrica, supresor de sobretensiones transitorias y de armonicos para cerebro electronico, Tipo SineTamer. | E32: 522 | F32: un | G32: 1
B33: A.8.1.E4 | C33: IE7 | D33: Kit de repuestos | E33: 522 | F33: gl | G33: 1
B34: F - Ascensor para Publico - Edificio remodelado
B35: A.8.1.F1 | C35: IE7 | D35: Provisión de ascensor sin sala de maquinas para 600Kg / 8 personas, velocidad 60m/minuto, 4 paradas, 4 niveles (4m. por nivel). Componentes: motor; módulo de control; cabina; guías; cabos; contrapesos; puertas; marcos y umbrales; software de monitoreo; accesorios | E35: 522 | F35: un | G35: 1
B36: A.8.1.F2 | C36: IE7 | D36: Intercomunicador, entre cabina y sala de control | E36: 522 | F36: un | G36: 1
B37: A.8.1.F3 | C37: IE7 | D37: Sistema de proteccion electrica, supresor de sobretensiones transitorias y de armonicos para cerebro electronico, Tipo SineTamer. | E37: 522 | F37: un | G37: 1
B38: A.8.1.F4 | C38: IE7 | D38: Kit de repuestos | E38: 522 | F38: gl | G38: 1
B39: 2. MATERIALES, MONTAJE Y PUESTA EN MARCHA
B40: A - Ascensor para Funcionarios
B41: A.8.2.A1 | C41: IE7 | D41: Trabajos de adecuación de las estructuras (elementos metálicos adicionales a la caja; perforaciones en losas; ganchos) | E41: 522 | F41: un | G41: 2
B42: A.8.2.A2 | C42: IE7 | D42: Adecuación de instalación eléctrica. Incluye provisión y montaje de canaletas de chapa, tableros, interruptores eléctricos y conductores en piso, desde el alimentador existente en dicho local para los ascensores de funcionarios. Iluminacion interna y tomas electricas. | E42: 522 | F42: un | G42: 2
B43: A.8.2.A3 | C43: IE7 | D43: Montaje e instalacion de equipos y accesorios por piso y por ascensor. | E43: 522 | F43: un | G43: =11*2 -> 22
B44: A.8.2.A4 | C44: IE7 | D44: Montaje de guías, cabina y accesorios. | E44: 522 | F44: un | G44: 2
B45: A.8.2.A5 | C45: IE7 | D45: Montaje de accesorios en pisos, soportes y puertas de piso. | E45: 522 | F45: un | G45: =11*2 -> 22
B46: A.8.2.A6 | C46: IE7 | D46: Puesta en marcha de los ascensores | E46: 522 | F46: un | G46: 2
B47: B - Ascensor para Publico
B48: A.8.2.B1 | C48: IE7 | D48: Trabajos de adecuación de las estructuras (elementos metálicos adicionales a la caja; perforaciones en losas; ganchos) | E48: 522 | F48: un | G48: 2
B49: A.8.2.B2 | C49: IE7 | D49: Adecuación de instalación eléctrica. Incluye provisión y montaje de canaletas de chapa, tableros, interruptores eléctricos y conductores en piso, desde el alimentador existente en dicho local para los ascensores de funcionarios. Iluminacion interna y tomas electricas. | E49: 522 | F49: un | G49: 2
B50: A.8.2.B3 | C50: IE7 | D50: Montaje e instalacion de equipos y accesorios por piso y por ascensor. | E50: 522 | F50: un | G50: =9*2 -> 18
B51: A.8.2.B4 | C51: IE7 | D51: Montaje de guías, cabina y accesorios. | E51: 522 | F51: un | G51: 2
B52: A.8.2.B5 | C52: IE7 | D52: Montaje de accesorios en pisos, soportes y puertas de piso. | E52: 522 | F52: un | G52: =9*2 -> 18
B53: A.8.2.B6 | C53: IE7 | D53: Puesta en marcha de los ascensores | E53: 522 | F53: un | G53: 2
B54: C - Ascensor para Imputados
B55: A.8.2.C1 | C55: IE7 | D55: Trabajos de adecuación de las estructuras (elementos metálicos adicionales a la caja; perforaciones en losas; ganchos) | E55: 522 | F55: un | G55: 1
B56: A.8.2.C2 | C56: IE7 | D56: Adecuación de instalación eléctrica. Incluye provisión y montaje de canaletas de chapa, tableros, interruptores eléctricos y conductores en piso, desde el alimentador existente en dicho local para los ascensores de funcionarios. Iluminacion interna y tomas electricas. | E56: 522 | F56: un | G56: 1
B57: A.8.2.C3 | C57: IE7 | D57: Montaje e instalacion de equipos y accesorios por piso y por ascensor. | E57: 522 | F57: un | G57: =3 -> 3
B58: A.8.2.C4 | C58: IE7 | D58: Montaje de guías, cabina y accesorios. | E58: 522 | F58: un | G58: 1
B59: A.8.2.C5 | C59: IE7 | D59: Montaje de accesorios en pisos, soportes y puertas de piso. | E59: 522 | F59: un | G59: 3
B60: A.8.2.C6 | C60: IE7 | D60: Puesta en marcha de los ascensores | E60: 522 | F60: un | G60: 1
B61: D - Ascensor para uso interno SUM, cafeteria - BLOQUE F
B62: A.8.2.D1 | C62: IE7 | D62: Trabajos de adecuación de las estructuras (elementos metálicos adicionales a la caja; perforaciones en losas; ganchos) | E62: 522 | F62: un | G62: 1
B63: A.8.2.D2 | C63: IE7 | D63: Adecuación de instalación eléctrica. Incluye provisión y montaje de canaletas de chapa, tableros, interruptores eléctricos y conductores en piso, desde el alimentador existente en dicho local para los ascensores de funcionarios. Iluminacion interna y tomas electricas. | E63: 522 | F63: un | G63: 1
B64: A.8.2.D3 | C64: IE7 | D64: Montaje e instalacion de equipos y accesorios por piso y por ascensor. | E64: 522 | F64: un | G64: 4
B65: A.8.2.D4 | C65: IE7 | D65: Montaje de guías, cabina y accesorios. | E65: 522 | F65: un | G65: 1
B66: A.8.2.D5 | C66: IE7 | D66: Montaje de accesorios en pisos, soportes y puertas de piso. | E66: 522 | F66: un | G66: 4
B67: A.8.2.D6 | C67: IE7 | D67: Puesta en marcha de los ascensores | E67: 522 | F67: un | G67: 1
B68: E - Ascensor para Funcionarios - Edificio remodelado
B69: A.8.2.E1 | C69: IE7 | D69: Trabajos de adecuación de las estructuras (elementos metálicos adicionales a la caja; perforaciones en losas; ganchos) | E69: 522 | F69: un | G69: 1
B70: A.8.2.E2 | C70: IE7 | D70: Desmontaje de ascensor existente | E70: 522 | F70: gl | G70: 1
B71: A.8.2.E3 | C71: IE7 | D71: Adecuación de instalación eléctrica. Incluye provisión y montaje de canaletas de chapa, tableros, interruptores eléctricos y conductores en piso, desde el alimentador existente en dicho local para los ascensores de funcionarios. Iluminacion interna y tomas electricas. | E71: 522 | F71: un | G71: 1
B72: A.8.2.E4 | C72: IE7 | D72: Montaje e instalacion de equipos y accesorios por piso y por ascensor. | E72: 522 | F72: un | G72: 4
B73: A.8.2.E5 | C73: IE7 | D73: Montaje de guías, cabina y accesorios. | E73: 522 | F73: un | G73: 1
B74: A.8.2.E6 | C74: IE7 | D74: Montaje de accesorios en pisos, soportes y puertas de piso. | E74: 522 | F74: un | G74: 4
B75: A.8.2.E7 | C75: IE7 | D75: Puesta en marcha de los ascensores | E75: 522 | F75: un | G75: 1
B76: F - Ascensor para Publico - Edificio remodelado
B77: A.8.2.F1 | C77: IE7 | D77: Trabajos de adecuación de las estructuras (elementos metálicos adicionales a la caja; perforaciones en losas; ganchos) | E77: 522 | F77: un | G77: 1
B78: A.8.2.F2 | C78: IE7 | D78: Desmontaje de ascensor existente | E78: 522 | F78: gl | G78: 1
B79: A.8.2.F3 | C79: IE7 | D79: Adecuación de instalación eléctrica. Incluye provisión y montaje de canaletas de chapa, tableros, interruptores eléctricos y conductores en piso, desde el alimentador existente en dicho local para los ascensores de funcionarios. Iluminacion interna y tomas electricas. | E79: 522 | F79: un | G79: 1
B80: A.8.2.F4 | C80: IE7 | D80: Montaje e instalacion de equipos y accesorios por piso y por ascensor. | E80: 522 | F80: un | G80: 4
B81: A.8.2.F5 | C81: IE7 | D81: Montaje de guías, cabina y accesorios. | E81: 522 | F81: un | G81: 1
B82: A.8.2.F6 | C82: IE7 | D82: Montaje de accesorios en pisos, soportes y puertas de piso. | E82: 522 | F82: un | G82: 4
B83: A.8.2.F7 | C83: IE7 | D83: Puesta en marcha de los ascensores | E83: 522 | F83: un | G83: 1
B84: G -Sala de Control y Otros
B85: A.8.2.G1 | C85: IE7 | D85: Instalación de software de monitoreo en computadora | E85: 522 | F85: gl | G85: 1
B86: A.8.2.G2 | C86: IE7 | D86: Instalación de intercomunicadores | E86: 522 | F86: un | G86: =+G11+G16+G21+G26+G31+G36 -> 8
B87: A.8.2.G3 | C87: IE7 | D87: Interconexión de cámaras de vídeo, cableado estructurado en cable movil para conexión de camara de la cabina. | E87: 522 | F87: un | G87: =+G86 -> 8
B88: A.8.2.G4 | C88: IE7 | D88: Manuales de operación y mantenimiento en idioma español | E88: 522 | F88: gl | G88: 1
B89: A.8.2.G5 | C89: IE7 | D89: Capacitación a funcionarios para operación y control del sistema | E89: 522 | F89: gl | G89: 1
B91: Sub Total A.8 - ASCENSORES
B92: Son Guaraníes………………..

Sheet A.9 Generador
B1: CORTE SUPREMA DE JUSTICIA - PROGRAMA DE LAS NACIONES UNIDAS PARA EL DESARROLLO
B2: "PROGRAMA DE INFRAESTRUCTURA EDILICIA CSJ - PNUD"
B3: =+Resumen!B3 -> SDP/14311/642/2021 - CONSTRUCCION DE LAS OBRAS CIVILES, INSTALACIONES Y MANTENIMIENTO POSTERIOR - AMPLIACION DEL PALACIO DE JUSTICIA DE SAN LORENZO
B5: A.9 PLANILLA DE CÓMPUTO MÉTRICO Y PRESUPUESTO - GENERADOR
B6: Ítem | C6: Cód. | D6: Descripción de Rubros | E6: OG | F6: Un | G6: Cant. | H6: Precio Unit. | I6: Precio Total
C7: E.T. | H7: Gs. Iva Incluido | I7: Gs. Iva Incluido
B8: 1. EQUIPOS
B9: A.9.1.1 | C9: IE8 | D9: Equipo generador eléctrico para emergencia. Motor diesel de inyección directa. Generador síncrono trifásico. Potencia: 750 KVA en Standby. Tensión: 380V / 220 V. Frecuencia: 50Hz. 3 Fases y Neutro (conexión estrella). Módulo de control, monitoreo y protección. Conjunto integrado incluyendo tanque de combustible sobre chasis de apoyo antivibratorio. Sistema de Insonorizacion de fabrica | E9: 533 | F9: un | G9: 1
B10: A.9.1.2 | C10: IE8 | D10: Provisión de un gateway a algún protocolo de comunicación abierto, KNX serial o IP, BACnet IP o Modbus TCP/IP, para integrar el módulo de control al BMS | E10: 533 | F10: un | G10: 1
B11: A.9.1.3 | C11: IE8 | D11: Placa de control y monitoreo de funcionamiento del generador desde el gabitete tecnico de la Sala de Control | E11: 533 | F11: gl | G11: 1
B12: A.9.1.4 | C12: IE8 | D12: Cargador de batería permanente conectado a red de 220V | E12: 533 | F12: un | G12: 1
B13: A.9.1.5 | C13: IE8 | D13: Kit de repuestos | E13: 533 | F13: gl | G13: 1
B14: A.9.1.6 | C14: IE8 | D14: Tablero de transferencia automática de 1000A | E14: 533 | F14: un | G14: 1
B15: 2. MATERIALES, MONTAJE Y PUESTA EN MARCHA
B16: A.9.2.1 | C16: IE8 | D16: Tubería de escape de humos | E16: 533 | F16: gl | G16: 1
B17: A.9.2.2 | C17: IE8 | D17: Interconexiones eléctricas | E17: 533 | F17: gl | G17: 1
B18: A.9.2.3 | C18: IE8 | D18: Asistencia técnica al integrador electrónico para la inclusión de los controladores del generador al BMS del Edificio | E18: 533 | F18: un | G18: 1
B19: A.9.2.4 | C19: IE8 | D19: Montaje e instalación del grupo generador | E19: 533 | F19: gl | G19: 1
B20: A.9.2.5 | C20: IE8 | D20: Manuales de operación y mantenimiento en idioma español | E20: 533 | F20: gl | G20: 1
B21: A.9.2.6 | C21: IE8 | D21: Capacitación a funcionarios para operación y control del sistema | E21: 533 | F21: gl | G21: 1
B23: Sub Total A.9 - GENERADOR
B24: Son Guaraníes………………..
